Workbook

Sheet 財務分析シート ver3
B4: ■基本情報
B5: 商号 | E5: =【入力】財務分析!D5 -> 株式会社○○
B7: 所在地 | E7: =【入力】財務分析!D6 -> 東京都○○
B8: 代表者名 | E8: =【入力】財務分析!D7 -> ○○ ○○
B9: 業種_大分類 | E9: =【入力】財務分析!D9 -> 13_観光業
B10: 業種_小分類 | E10: =【入力】財務分析!D10 -> 1301_観光業
B11: 事業規模 | E11: =【入力】財務分析!D19 -> 中規模事業者
B13: 売上高 | E13: =【入力】財務分析!$D$26 -> 5,130,250(千円)
B14: 営業利益 | E14: =【入力】財務分析!$D$28 -> 15,000(千円)
B15: 従業員数 | E15: =【入力】財務分析!D12 -> 30(人)
B18: ■財務指標(最新期）
B19: 指標 | E19: =【入力】財務分析!D25 -> 2022-03-31
E20: 算出結果 | G20: 貴社点数 | I20: 業種基準値
B21: ①売上増加率 | E21: =【入力】財務分析!L6 -> 7.8% | G21: =【入力】財務分析!M6 -> 4 | I21: =IFERROR(INDEX(【参照】売上増加率基準値!$E:$E,MATCH($E$10&$E$11,INDEX(【参照】売上増加率基準値!$C:$C&【参照】売上増加率基準値!$D:$D,),0)),"-") -> -4.2%
B22: ②営業利益率 | E22: =【入力】財務分析!L7 -> 0.3% | G22: =【入力】財務分析!M7 -> 3 | I22: =IFERROR(INDEX(【参照】営業利益率基準値!$E:$E,MATCH($E$10&$E$11,INDEX(【参照】営業利益率基準値!$C:$C&【参照】営業利益率基準値!$D:$D,),0)),"-") -> -0.0%
B23: ③労働生産性 | E23: =【入力】財務分析!L8 -> 500(千円) | G23: =【入力】財務分析!M8 -> 4 | I23: =IFERROR(INDEX(【参照】労働生産性基準値!$E:$E,MATCH($E$10&$E$11,INDEX(【参照】労働生産性基準値!$C:$C&【参照】労働生産性基準値!$D:$D,),0)),"-") -> -379(千円)
B24: ④EBITDA有利子負債倍率 | E24: =【入力】財務分析!L9 -> -0.1(倍) | G24: =【入力】財務分析!M9 -> 5 | I24: =IFERROR(INDEX(【参照】EBITDA基準値!$E:$E,MATCH($E$10&$E$11,INDEX(【参照】EBITDA基準値!$C:$C&【参照】EBITDA基準値!$D:$D,),0)),"-") -> 13.7(倍)
B25: ⑤営業運転資本回転期間 | E25: =【入力】財務分析!L10 -> 0.8(ヶ月) | G25: =【入力】財務分析!M10 -> 3 | I25: =IFERROR(INDEX(【参照】営業運転資本回転期間基準値!$E:$E,MATCH($E$10&$E$11,INDEX(【参照】営業運転資本回転期間基準値!$C:$C&【参照】営業運転資本回転期間基準値!$D:$D,),0)),"-") -> 0.5(ヶ月)
B26: ⑥自己資本比率 | E26: =【入力】財務分析!L11 -> 35.4% | G26: =【入力】財務分析!M11 -> 4 | I26: =IFERROR(INDEX(【参照】自己資本比率基準値!$E:$E,MATCH($E$10&$E$11,INDEX(【参照】自己資本比率基準値!$C:$C&【参照】自己資本比率基準値!$D:$D,),0)),"-") -> 15.3%
E28: 総合評価点 | H28: =SUM(G21:H26) -> 23 | I28: =IF(H28>=24,"A",IF(H28>=18,"B",IF(H28>=12,"C","D"))) -> B
B31: ■財務指標（過去2期）
B32: 指標 | E32: =【入力】財務分析!E25 -> 2021-03-31 | K32: =【入力】財務分析!F25 -> 2020-03-31 | S32: ※１各項目の評点および総合評価点は各項目の業種基準値からの乖離を示すものであり、点数の高低が必ずしも企業の評価を示すものではありません。非財務情報も含め、総合的な判断が必要なことにご留意ください。 ※２レーダーチャートで3期分の財務分析結果の推移が確認できるため、各指標が良化（あるいは悪化）した要因を非財務の対話シートを活用しながら把握することで、経営状況や課題の把握に繋がります。
E33: 算出結果 | G33: 貴社点数 | I33: 業種基準値 | K33: 算出結果 | N33: 貴社点数 | P33: 業種基準値
B34: ①売上増加率 | E34: =【入力】財務分析!N6 -> -2.4% | G34: =【入力】財務分析!O6 -> 3 | I34: =IFERROR(INDEX(【参照】売上増加率基準値!$E:$E,MATCH($E$10&$E$11,INDEX(【参照】売上増加率基準値!$C:$C&【参照】売上増加率基準値!$D:$D,),0)),"-") -> -4.2% | K34: =【入力】財務分析!P6 -> -1.2% | N34: =【入力】財務分析!Q6 -> 3 | P34: =IFERROR(INDEX(【参照】売上増加率基準値!$E:$E,MATCH($E$10&$E$11,INDEX(【参照】売上増加率基準値!$C:$C&【参照】売上増加率基準値!$D:$D,),0)),"-") -> -4.2%
B35: ②営業利益率 | E35: =【入力】財務分析!N7 -> -0.3% | G35: =【入力】財務分析!O7 -> 3 | I35: =IFERROR(INDEX(【参照】営業利益率基準値!$E:$E,MATCH($E$10&$E$11,INDEX(【参照】営業利益率基準値!$C:$C&【参照】営業利益率基準値!$D:$D,),0)),"-") -> -0.0% | K35: =【入力】財務分析!P7 -> 0.0% | N35: =【入力】財務分析!Q7 -> 3 | P35: =IFERROR(INDEX(【参照】営業利益率基準値!$E:$E,MATCH($E$10&$E$11,INDEX(【参照】営業利益率基準値!$C:$C&【参照】営業利益率基準値!$D:$D,),0)),"-") -> -0.0%
B36: ③労働生産性 | E36: =【入力】財務分析!N8 -> -393(千円) | G36: =【入力】財務分析!O8 -> 3 | I36: =IFERROR(INDEX(【参照】労働生産性基準値!$E:$E,MATCH($E$10&$E$11,INDEX(【参照】労働生産性基準値!$C:$C&【参照】労働生産性基準値!$D:$D,),0)),"-") -> -379(千円) | K36: =【入力】財務分析!P8 -> 0(千円) | N36: =【入力】財務分析!Q8 -> 3 | P36: =IFERROR(INDEX(【参照】労働生産性基準値!$E:$E,MATCH($E$10&$E$11,INDEX(【参照】労働生産性基準値!$C:$C&【参照】労働生産性基準値!$D:$D,),0)),"-") -> -379(千円)
B37: ④EBITDA有利子負債倍率 | E37: =【入力】財務分析!N9 -> 61.2(倍) | G37: =【入力】財務分析!O9 -> 2 | I37: =IFERROR(INDEX(【参照】EBITDA基準値!$E:$E,MATCH($E$10&$E$11,INDEX(【参照】EBITDA基準値!$C:$C&【参照】EBITDA基準値!$D:$D,),0)),"-") -> 13.7(倍) | K37: =【入力】財務分析!P9 -> - | N37: =【入力】財務分析!Q9 -> 1 | P37: =IFERROR(INDEX(【参照】EBITDA基準値!$E:$E,MATCH($E$10&$E$11,INDEX(【参照】EBITDA基準値!$C:$C&【参照】EBITDA基準値!$D:$D,),0)),"-") -> 13.7(倍)
B38: ⑤営業運転資本回転期間 | E38: =【入力】財務分析!N10 -> 2.8(ヶ月) | G38: =【入力】財務分析!O10 -> 1 | I38: =IFERROR(INDEX(【参照】営業運転資本回転期間基準値!$E:$E,MATCH($E$10&$E$11,INDEX(【参照】営業運転資本回転期間基準値!$C:$C&【参照】営業運転資本回転期間基準値!$D:$D,),0)),"-") -> 0.5(ヶ月) | K38: =【入力】財務分析!P10 -> 1.1(ヶ月) | N38: =【入力】財務分析!Q10 -> 2 | P38: =IFERROR(INDEX(【参照】営業運転資本回転期間基準値!$E:$E,MATCH($E$10&$E$11,INDEX(【参照】営業運転資本回転期間基準値!$C:$C&【参照】営業運転資本回転期間基準値!$D:$D,),0)),"-") -> 0.5(ヶ月)
B39: ⑥自己資本比率 | E39: =【入力】財務分析!N11 -> 2.1% | G39: =【入力】財務分析!O11 -> 2 | I39: =IFERROR(INDEX(【参照】自己資本比率基準値!$E:$E,MATCH($E$10&$E$11,INDEX(【参照】自己資本比率基準値!$C:$C&【参照】自己資本比率基準値!$D:$D,),0)),"-") -> 15.3% | K39: =【入力】財務分析!P11 -> 24.2% | N39: =【入力】財務分析!Q11 -> 3 | P39: =IFERROR(INDEX(【参照】自己資本比率基準値!$E:$E,MATCH($E$10&$E$11,INDEX(【参照】自己資本比率基準値!$C:$C&【参照】自己資本比率基準値!$D:$D,),0)),"-") -> 15.3%
E41: 総合評価点 | H41: =SUM(G34:H39) -> 14 | I41: =IF(H41>=24,"A",IF(H41>=18,"B",IF(H41>=12,"C","D"))) -> C | K41: 総合評価点 | O41: =SUM(N34:O39) -> 15 | P41: =IF(O41>=24,"A",IF(O41>=18,"B",IF(O41>=12,"C","D"))) -> C
E43: ※総合評価点のランクはA：24点以上、B：18点以上24点未満、C：12点以上18点未満、D：12点未満

Sheet 【入力】財務分析
B1: 以下項目の黄色い網掛け部分について入力してください。
B3: ■基本入力情報 | D3: ※金額の単位は千円、従業員数の単位は人
B4: 項目 | D4: 入力欄 | I4: ■算出結果 | L4: =D25 -> 2022-03-31 | N4: =E25 -> 2021-03-31 | P4: =F25 -> 2020-03-31
B5: 商号 | D5: 株式会社○○ | I5: 指標 | L5: 算出結果 | M5: 点数 | N5: 算出結果 | O5: 点数 | P5: 算出結果 | Q5: 点数
B6: 所在地 | D6: 東京都○○ | I6: ①売上増加率 | L6: =IFERROR(IF(OR(D26="",D27=""),"-",(D26/D27)-1),"-") -> 7.8% | M6: =IFERROR(IF(OR(L6="-",$K$15="-"),".",IF((L6>=$N$15),5,IF(AND(L6>=$M$15,L6<$N$15),4,IF(AND(L6>=$L$15,L6<$M$15),3,IF(AND(L6>=$K$15,L6<$L$15),2,IF((L6<$K$15),1)))))),".") -> 4 | N6: =IFERROR(IF(OR(E26="",E27=""),"-",(E26/E27)-1),"-") -> -2.4% | O6: =IFERROR(IF(OR($K$15="-",N6="-"),".",IF((N6>=$N$15),5,IF(AND(N6>=$M$15,N6<$N$15),4,IF(AND(N6>=$L$15,N6<$M$15),3,IF(AND(N6>=$K$15,N6<$L$15),2,IF((N6<$K$15),1)))))),".") -> 3 | P6: =IFERROR(IF(OR(F26="",F27=""),"-",(F26/F27)-1),"-") -> -1.2% | Q6: =IFERROR(IF(OR($K$15="-",P6="-"),".",IF((P6>=$N$15),5,IF(AND(P6>=$M$15,P6<$N$15),4,IF(AND(P6>=$L$15,P6<$M$15),3,IF(AND(P6>=$K$15,P6<$L$15),2,IF((P6<$K$15),1)))))),".") -> 3
B7: 代表者名 | D7: ○○ ○○ | I7: ②営業利益率 | L7: =IFERROR(IF(OR(D28="",D26=""),"-",D28/D26),"-") -> 0.3% | M7: =IFERROR(IF(OR($K$16="-",L7="-"),".",IF((L7>=$N$16),5,IF(AND(L7>=$M$16,L7<$N$16),4,IF(AND(L7>=$L$16,L7<$M$16),3,IF(AND(L7>=$K$16,L7<$L$16),2,IF((L7<$K$16),1)))))),".") -> 3 | N7: =IFERROR(IF(OR(E28="",E26=""),"-",E28/E26),"-") -> -0.3% | O7: =IFERROR(IF(OR($K$16="-",N7="-"),".",IF((N7>=$N$16),5,IF(AND(N7>=$M$16,N7<$N$16),4,IF(AND(N7>=$L$16,N7<$M$16),3,IF(AND(N7>=$K$16,N7<$L$16),2,IF((N7<$K$16),1)))))),".") -> 3 | P7: =IFERROR(IF(OR(F28="",F26=""),"-",F28/F26),"-") -> 0.0% | Q7: =IFERROR(IF(OR($K$16="-",P7="-"),".",IF((P7>=$N$16),5,IF(AND(P7>=$M$16,P7<$N$16),4,IF(AND(P7>=$L$16,P7<$M$16),3,IF(AND(P7>=$K$16,P7<$L$16),2,IF((P7<$K$16),1)))))),".") -> 3
B8: 業種確認ボタン | I8: ③労働生産性 ※8 | L8: =IFERROR(IF(OR(D28="",D12=""),"-",D28/D12),"-") -> 500(千円) | M8: =IFERROR(IF(OR($K$17="-",L8="-"),".",IF((L8>=$N$17),5,IF(AND(L8>=$M$17,L8<$N$17),4,IF(AND(L8>=$L$17,L8<$M$17),3,IF(AND(L8>=$K$17,L8<$L$17),2,IF((L8<$K$17),1)))))),".") -> 4 | N8: =IFERROR(IF(OR(E28="",E12=""),"-",E28/E12),"-") -> -393(千円) | O8: =IFERROR(IF(OR($K$17="-",N8="-"),".",IF((N8>=$N$17),5,IF(AND(N8>=$M$17,N8<$N$17),4,IF(AND(N8>=$L$17,N8<$M$17),3,IF(AND(N8>=$K$17,N8<$L$17),2,IF((N8<$K$17),1)))))),".") -> 3 | P8: =IFERROR(IF(OR(F28="",F12=""),"-",F28/F12),"-") -> 0(千円) | Q8: =IFERROR(IF(OR($K$17="-",P8="-"),".",IF((P8>=$N$17),5,IF(AND(P8>=$M$17,P8<$N$17),4,IF(AND(P8>=$L$17,P8<$M$17),3,IF(AND(P8>=$K$17,P8<$L$17),2,IF((P8<$K$17),1)))))),".") -> 3
B9: ローカルベンチマーク業種_大分類 | D9: 13_観光業 | I9: ④EBITDA有利子負債倍率 ※9 | L9: =IFERROR(IF(OR(D28="",D29="",D30="",D37=""),"-",(D37-D30)/(D28+D29)),"-") -> -0.1(倍) | M9: =IFERROR(IF($K$18="-",".",IF(AND($D$37<>"",$D$30<>"",OR($D$37<$D$30,$D$37-$D$30=0)),5,IF(AND($D$28<>"",$D$29<>"",(($D$28+$D$29)<=0)),1,IF((L9<$N$18),5,IF(AND(L9>=$N$18,L9<$M$18),4,IF(AND(L9>=$M$18,L9<$L$18),3,IF(AND(L9>=$L$18,L9<$K$18),2,IF(AND(L9>=$K$18,L9<>"-"),1,IF(L9="-","."))))))))),".") -> 5 | N9: =IFERROR(IF(OR(E28="",E29="",E30="",E37=""),"-",(E37-E30)/(E28+E29)),"-") -> 61.2(倍) | O9: =IFERROR(IF($K$18="-",".",IF(AND($E$37<>"",$E$30<>"",OR($E$37<$E$30,$E$37-$E$30=0)),5,IF(AND($E$28<>"",$E$29<>"",(($E$28+$E$29)<=0)),1,IF((N9<$N$18),5,IF(AND(N9>=$N$18,N9<$M$18),4,IF(AND(N9>=$M$18,N9<$L$18),3,IF(AND(N9>=$L$18,N9<$K$18),2,IF(AND(N9>=$K$18,N9<>"-"),1,IF(N9="-","."))))))))),".") -> 2 | P9: =IFERROR(IF(OR(F28="",F29="",F30="",F37=""),"-",(F37-F30)/(F28+F29)),"-") -> - | Q9: =IFERROR(IF($K$18="-",".",IF(AND($F$37<>"",$F$30<>"",OR($F$37<$F$30,$F$37-$F$30=0)),5,IF(AND($F$28<>"",$F$29<>"",(($F$28+$F$29)<=0)),1,IF((P9<$N$18),5,IF(AND(P9>=$N$18,P9<$M$18),4,IF(AND(P9>=$M$18,P9<$L$18),3,IF(AND(P9>=$L$18,P9<$K$18),2,IF(AND(P9>=$K$18,P9<>"-"),1,IF(P9="-","."))))))))),".") -> 1
B10: ローカルベンチマーク業種_小分類 | D10: 1301_観光業 | I10: ⑤営業運転資本回転期間 | L10: =IFERROR(IF(OR(D26="",AND(D32="",D31="",D33="",D36="",D35)),"-",(D32+D31+D33-(D36+D35))/(D26/12)),"-") -> 0.8(ヶ月) | M10: =IFERROR(IF(OR($K$19="-",L10="-"),".",IF((L10<$N$19),5,IF(AND(L10>=$N$19,L10<$M$19),4,IF(AND(L10>=$M$19,L10<$L$19),3,IF(AND(L10>=$L$19,L10<$K$19),2,IF((L10>=$K$19),1)))))),".") -> 3 | N10: =IFERROR(IF(OR(E26="",AND(E32="",E31="",E33="",E36="",E35)),"-",(E32+E31+E33-(E36+E35))/(E26/12)),"-") -> 2.8(ヶ月) | O10: =IFERROR(IF(OR($K$19="-",N10="-"),".",IF((N10<$N$19),5,IF(AND(N10>=$N$19,N10<$M$19),4,IF(AND(N10>=$M$19,N10<$L$19),3,IF(AND(N10>=$L$19,N10<$K$19),2,IF((N10>=$K$19),1)))))),".") -> 1 | P10: =IFERROR(IF(OR(F26="",AND(F32="",F31="",F33="",F36="",F35)),"-",(F32+F31+F33-(F36+F35))/(F26/12)),"-") -> 1.1(ヶ月) | Q10: =IFERROR(IF(OR($K$19="-",P10="-"),".",IF((P10<$N$19),5,IF(AND(P10>=$N$19,P10<$M$19),4,IF(AND(P10>=$M$19,P10<$L$19),3,IF(AND(P10>=$L$19,P10<$K$19),2,IF((P10>=$K$19),1)))))),".") -> 2
D11: 最新決算期 | E11: 前期決算期 | F11: 前々期決算期 | I11: ⑥自己資本比率 | L11: =IFERROR(IF(OR(D38="",D34=""),"-",D38/(D38+D34)),"-") -> 35.4% | M11: =IFERROR(IF(OR($K$20="-",L11="-"),".",IF((L11>=$N$20),5,IF(AND(L11>=$M$20,L11<$N$20),4,IF(AND(L11>=$L$20,L11<$M$20),3,IF(AND(L11>=$K$20,L11<$L$20),2,IF((L11<$K$20),1)))))),".") -> 4 | N11: =IFERROR(IF(OR(E38="",E34=""),"-",E38/(E38+E34)),"-") -> 2.1% | O11: =IFERROR(IF(OR($K$20="-",N11="-"),".",IF((N11>=$N$20),5,IF(AND(N11>=$M$20,N11<$N$20),4,IF(AND(N11>=$L$20,N11<$M$20),3,IF(AND(N11>=$K$20,N11<$L$20),2,IF((N11<$K$20),1)))))),".") -> 2 | P11: =IFERROR(IF(OR(F38="",F34=""),"-",F38/(F38+F34)),"-") -> 24.2% | Q11: =IFERROR(IF(OR($K$20="-",P11="-"),".",IF((P11>=$N$20),5,IF(AND(P11>=$M$20,P11<$N$20),4,IF(AND(P11>=$L$20,P11<$M$20),3,IF(AND(P11>=$K$20,P11<$L$20),2,IF((P11<$K$20),1)))))),".") -> 3
B12: 従業員数（正社員）※1 | D12: 30 | E12: 39 | F12: 30
B13: 資本金 ※2 | D13: 10,000 | I13: ="■"&D19&"_"&D10&"_企業のランク基準" -> ■中規模事業者_1301_観光業_企業のランク基準
I14: 指標 | K14: ⅳ | L14: ⅲ | M14: ⅱ | N14: ⅰ
I15: ①売上増加率 | K15: =IFERROR(INDEX(【参照】売上増加率基準値!$G:$G,MATCH($D$10&$D$19,INDEX(【参照】売上増加率基準値!$C:$C&【参照】売上増加率基準値!$D:$D,),0)),"-") -> -22.0% | L15: =IFERROR(INDEX(【参照】売上増加率基準値!$H:$H,MATCH($D$10&$D$19,INDEX(【参照】売上増加率基準値!$C:$C&【参照】売上増加率基準値!$D:$D,),0)),"-") -> -13.4% | M15: =IFERROR(INDEX(【参照】売上増加率基準値!$I:$I,MATCH($D$10&$D$19,INDEX(【参照】売上増加率基準値!$C:$C&【参照】売上増加率基準値!$D:$D,),0)),"-") -> 4.2% | N15: =IFERROR(INDEX(【参照】売上増加率基準値!$J:$J,MATCH($D$10&$D$19,INDEX(【参照】売上増加率基準値!$C:$C&【参照】売上増加率基準値!$D:$D,),0)),"-") -> 17.7%
I16: ②営業利益率 | K16: =IFERROR(INDEX(【参照】営業利益率基準値!$G:$G,MATCH($D$10&$D$19,INDEX(【参照】営業利益率基準値!$C:$C&【参照】営業利益率基準値!$D:$D,),0)),"-") -> -12.3% | L16: =IFERROR(INDEX(【参照】営業利益率基準値!$H:$H,MATCH($D$10&$D$19,INDEX(【参照】営業利益率基準値!$C:$C&【参照】営業利益率基準値!$D:$D,),0)),"-") -> -6.1% | M16: =IFERROR(INDEX(【参照】営業利益率基準値!$I:$I,MATCH($D$10&$D$19,INDEX(【参照】営業利益率基準値!$C:$C&【参照】営業利益率基準値!$D:$D,),0)),"-") -> 1.2% | N16: =IFERROR(INDEX(【参照】営業利益率基準値!$J:$J,MATCH($D$10&$D$19,INDEX(【参照】営業利益率基準値!$C:$C&【参照】営業利益率基準値!$D:$D,),0)),"-") -> 7.2%
I17: ③労働生産性 | K17: =IFERROR(INDEX(【参照】労働生産性基準値!$G:$G,MATCH($D$10&$D$19,INDEX(【参照】労働生産性基準値!$C:$C&【参照】労働生産性基準値!$D:$D,),0)),"-") -> -1,896(千円) | L17: =IFERROR(INDEX(【参照】労働生産性基準値!$H:$H,MATCH($D$10&$D$19,INDEX(【参照】労働生産性基準値!$C:$C&【参照】労働生産性基準値!$D:$D,),0)),"-") -> -1,067(千円) | M17: =IFERROR(INDEX(【参照】労働生産性基準値!$I:$I,MATCH($D$10&$D$19,INDEX(【参照】労働生産性基準値!$C:$C&【参照】労働生産性基準値!$D:$D,),0)),"-") -> 302(千円) | N17: =IFERROR(INDEX(【参照】労働生産性基準値!$J:$J,MATCH($D$10&$D$19,INDEX(【参照】労働生産性基準値!$C:$C&【参照】労働生産性基準値!$D:$D,),0)),"-") -> 1,901(千円)
I18: ④EBITDA有利子負債倍率 | K18: =IFERROR(INDEX(【参照】EBITDA基準値!$G:$G,MATCH($D$10&$D$19,INDEX(【参照】EBITDA基準値!$C:$C&【参照】EBITDA基準値!$D:$D,),0)),"-") -> 68.2(倍) | L18: =IFERROR(INDEX(【参照】EBITDA基準値!$H:$H,MATCH($D$10&$D$19,INDEX(【参照】EBITDA基準値!$C:$C&【参照】EBITDA基準値!$D:$D,),0)),"-") -> 19.5(倍) | M18: =IFERROR(INDEX(【参照】EBITDA基準値!$I:$I,MATCH($D$10&$D$19,INDEX(【参照】EBITDA基準値!$C:$C&【参照】EBITDA基準値!$D:$D,),0)),"-") -> 8.9(倍) | N18: =IFERROR(INDEX(【参照】EBITDA基準値!$J:$J,MATCH($D$10&$D$19,INDEX(【参照】EBITDA基準値!$C:$C&【参照】EBITDA基準値!$D:$D,),0)),"-") -> 2.5(倍)
B19: 事業規模 ※3 | D19: =IF(OR(D9="",D10=""),"業種欄が未入力のため規模判定ができません",IF(LEFT(D9,2)<>LEFT(D10,2),"業種欄に間違いがあるため規模判定ができません",IF(D12="","従業員数欄が未入力のため規模判定ができません",IF(D13="","資本金欄が未入力のため規模判定ができません",【参照】企業規模!C2)))) -> 中規模事業者 | I19: ⑤営業運転資本回転期間 | K19: =IFERROR(INDEX(【参照】営業運転資本回転期間基準値!$G:$G,MATCH($D$10&$D$19,INDEX(【参照】営業運転資本回転期間基準値!$C:$C&【参照】営業運転資本回転期間基準値!$D:$D,),0)),"-") -> 1.3(ヶ月) | L19: =IFERROR(INDEX(【参照】営業運転資本回転期間基準値!$H:$H,MATCH($D$10&$D$19,INDEX(【参照】営業運転資本回転期間基準値!$C:$C&【参照】営業運転資本回転期間基準値!$D:$D,),0)),"-") -> 0.8(ヶ月) | M19: =IFERROR(INDEX(【参照】営業運転資本回転期間基準値!$I:$I,MATCH($D$10&$D$19,INDEX(【参照】営業運転資本回転期間基準値!$C:$C&【参照】営業運転資本回転期間基準値!$D:$D,),0)),"-") -> 0.3(ヶ月) | N19: =IFERROR(INDEX(【参照】営業運転資本回転期間基準値!$J:$J,MATCH($D$10&$D$19,INDEX(【参照】営業運転資本回転期間基準値!$C:$C&【参照】営業運転資本回転期間基準値!$D:$D,),0)),"-") -> 0.0(ヶ月)
I20: ⑥自己資本比率 | K20: =IFERROR(INDEX(【参照】自己資本比率基準値!$G:$G,MATCH($D$10&$D$19,INDEX(【参照】自己資本比率基準値!$C:$C&【参照】自己資本比率基準値!$D:$D,),0)),"-") -> -7.9% | L20: =IFERROR(INDEX(【参照】自己資本比率基準値!$H:$H,MATCH($D$10&$D$19,INDEX(【参照】自己資本比率基準値!$C:$C&【参照】自己資本比率基準値!$D:$D,),0)),"-") -> 6.7% | M20: =IFERROR(INDEX(【参照】自己資本比率基準値!$I:$I,MATCH($D$10&$D$19,INDEX(【参照】自己資本比率基準値!$C:$C&【参照】自己資本比率基準値!$D:$D,),0)),"-") -> 33.5% | N20: =IFERROR(INDEX(【参照】自己資本比率基準値!$J:$J,MATCH($D$10&$D$19,INDEX(【参照】自己資本比率基準値!$C:$C&【参照】自己資本比率基準値!$D:$D,),0)),"-") -> 64.0%
B22: ■財務分析用入力情報 | D22: ※金額の単位は千円
B23: 項目 | D23: 入力欄 | I23: ■算出指標
D24: 最新決算期 | E24: 前期決算期 | F24: 前々期決算期 | I24: 指標 | L24: 分類 | M24: 単位 | N24: 算出式
B25: 決算年月 | D25: 2022-03-31 | E25: 2021-03-31 | F25: 2020-03-31 | I25: ①売上増加率 | L25: 売上持続性 | M25: ％ | N25: ｛（最新期売上高/前期売上高）－１｝ ×100
B26: 売上高 | D26: 5,130,250 | E26: 4,756,859 | F26: 4,871,515 | I26: ②営業利益率 | L26: 収益性 | M26: ％ | N26: （営業利益／最新期売上高） ×100
B27: 前期売上高 | D27: =E26 -> 4,756,859 | E27: =F26 -> 4,871,515 | F27: 4,932,102 | I27: ③労働生産性 ※8 | L27: 生産性 | M27: 千円 | N27: 営業利益／従業員数
B28: 営業利益 | D28: 15,000 | E28: -15,320 | F28: 0 | I28: ④EBITDA有利子負債倍率 ※9 | L28: 健全性 | M28: 倍 | N28: （借入金－現金・預金）／（営業利益＋減価償却費） ※9
B29: 減価償却費 ※4 | D29: 0 | E29: 18,340 | F29: 0 | I29: ⑤営業運転資本回転期間 | L29: 効率性 | M29: ヶ月 | N29: ｛売上債権（売掛金＋受取手形）＋棚卸資産－ 買入債務（買掛金＋支払手形）｝／（売上高／12）
B30: 現金・預金 | D30: 1,000 | E30: 465,301 | F30: 474,607
B31: 受取手形 ※5 | D31: 270,760 | E31: 259,930 | F31: 228,738 | I31: ⑥自己資本比率 | L31: 安全性 | M31: ％ | N31: （純資産／負債・純資産合計） ×100
B32: 売掛金 | D32: 456,500 | E32: 944,198 | F32: 566,895
B33: 棚卸資産 | D33: 439,285 | E33: 621,714 | F33: 371,108
B34: 負債合計 | D34: 1,668,387 | E34: 3,201,652 | F34: 2,409,453
B35: 支払手形 ※6 | D35: 463,324 | E35: 444,791 | F35: 391,416
B36: 買掛金 | D36: 373,206 | E36: 258,278 | F36: 315,284
B37: 借入金 ※7 | D37: 0 | E37: 650,120 | F37: 970,130
B38: 純資産合計 | D38: 912,793 | E38: 70,281 | F38: 771,128
I39: （表1）
B40: ※1：従業員（正社員）には、パート及び派遣及び契約社員は含まれません。従業員兼役員は含まれます。 | I40: 業種 | J40: 本財務分析シートの業種区分 | L40: 中小企業基本法 中小企業定義
B41: 役員のみの企業で上記定義によると0名となる場合については、1名として下さい。 | I41: 製造業 その他 | J41: 農業、建設業、製造業、不動産業、運輸業、エネルギー、その他 | L41: 資本金の額又は出資の総額が3億円以下の会社 又は 常時使用する従業員の数が300人以下の会社及び個人
B42: ※2：個人事業主の場合は、資本金は「0」と入力して下さい。 | M42: 内、従業員20人以下の企業を「小規模企業」とする。
B43: ※3：事業規模は、中小企業基本法の中小企業者の定義(表1）に基づき判定しております。 尚、中小企業以外の「中堅企業等」は、「中規模企業」として事業規模判定をしております。 | I43: 卸売業 | J43: 卸売業 | L43: 資本金の額又は出資の総額が1億円以下の会社 又は 常時使用する従業員の数が100人以下の会社及び個人
M44: 内、従業員5人以下の企業を「小規模企業」とする。
B45: ※4：製造原価、一般管理販売費等に計上されている減価償却費の合計を入力して下さい。 | I45: 小売業 | J45: 小売業、飲食業 | L45: 資本金の額又は出資の総額が5千万円以下の会社 又は 常時使用する従業員の数が50人以下の会社及び個人
B46: ※5：受取手形には、割引手形を含めた金額を入力して下さい。 | M46: 内、従業員5人以下の企業を「小規模企業」とする。
B47: ※6：支払手形には、設備支払手形は含めません。 | I47: サービス業 | J47: サービス業、医療業、保健衛生、廃棄物処理業、観光業 | L47: 資本金の額又は出資の総額が5千万円以下の会社 又は 常時使用する従業員の数が100人以下の会社及び個人
B48: ※7：借入金は、長期借入・短期借入・1年以内返済長期借入金・社債の合計を入力して下さい。 役員借入金の科目を別途設けている場合にはその金額を借入金に含める必要はありません。 | M48: 内、従業員5人以下の企業を「小規模企業」とする。
B50: なお、基準値の計算上、役員借入金のうち、長期借入・短期借入・1年以内返済長期借入金に計上されていないものは含まれていません。
B51: ※8：本分析の労働生産性は簡易的に計算したものとなりますので、経営力向上計画等に記載の際は、それぞれの定義に沿った数値を各自で計算して下さい。
B52: ※9：以下の優先順位に基づき、点数を付与します。 優先①：（借入金－現金・預金）が0以下の場合は、「5点」を付与 優先②：（営業利益＋減価償却費）が0以下の場合は、「1点」を付与 優先③：（借入金－現金・預金）が0超の時及び（営業利益＋減価償却費）が0超の時、本式にて算出された結果に基づき点数を付与

Sheet 【入力】商流・業務フロー
V1: 商号 | Y1: =【入力】財務分析!D5 -> 株式会社○○
F2: ローカルベンチマークは企業の現在の企業の経営状態の把握、いわゆる健康診断を行うもので、企業の経営者と金融機関、支援機関等が | V2: 売上高 | Y2: =【入力】財務分析!D26 -> 5,130,250(千円)
F3: 対話を行いながら、ローカルベンチシートを使用しながら企業経営の現状や課題を相互に理解することで個別企業の経営改善等を目指します。 | V3: 営業利益 | Y3: =【入力】財務分析!D28 -> 15,000(千円)
F4: 後述する経営デザインシートとセットで使用することで企業経営の効率的実現が可能となります。 | V4: 従業員数 | Y4: =【入力】財務分析!$D$12 -> 30(人)
B5: ＜製品製造、サービス提供における業務フローと差別化ポイント＞
B6: 業務① | G6: 業務② | L6: 業務③ | Q6: 業務④ | V6: 業務⑤ | AA6: 提供内容／顧客提供価値
B7: ■実施内容 | G7: ■実施内容 | L7: ■実施内容 | Q7: ■実施内容 | V7: ■実施内容 | AA7: ■製品・商品・サービスの内容
B8: 「地元食材を使った商品」をテーマに商品企画。 ブランドの統一感を意識。 | G8: 社長、役員だけでなく、社員も試食に参加し、幅広い意見を収集。 | L8: 自社工場と外注先を活用。 (製麺・顆粒だし製造は外注先) | Q8: ラベル等のデザインから、売場用のPOP含め内製化している。 | V8: 直販の販路開拓は途上であり、問屋が中心となっている。 | AA8: 地元食材○○を使用した、 ラーメンセット等の食品。 現在の商品数は○○種類。
F10: ⇒ | K10: ⇒ | P10: ⇒ | U10: ⇒ | Z10: ⇒
B13: ■差別化ポイント | G13: ■差別化ポイント | L13: ■差別化ポイント | Q13: ■差別化ポイント | V13: ■差別化ポイント | AA13: ■どのような価値を提供しているか
B14: 地元食材○○を使用した 食品開発をしている事業者は 県内で当社のみ。 ① | G14: 毎月の試作品数は○○件に及び、開発アイディアが豊富である。 ② | L14: 自社工場には大手食品メーカー出身者が ２名おり、積極的な改善提案がある。 ③ | Q14: 自社でデザイン～POP作成まで可能な食品メーカーは稀であり、小回りのきいた対応が可能。 ④ | V14: 問屋経由ながら、高級スーパーや、県内の空港への販路を確立している。 ⑤ | AA14: 「地元の名産品を全国区」がコンセプト。 一定の顧客からブランド 認知されリピート率高い。 ⑥
B20: ＜商流把握＞
B21: 仕入先 | L21: 当社 | V21: エンドユーザー
B22: ■社名・取引金額・内容等 | V22: ■属性（消費者・企業等）
B23: ○食材 卸売 A 社シェア○％ 卸売 B 社シェア○％ 契約農家シェア○％ | V23: ※社名・取引金額・内容等
G24: 協力先 | Q24: 得意先 | V24: 大手スーパーG社 県内空港H社
G25: ■社名・取引金額・内容等 | Q25: ■属性（消費者・企業等）
G26: ○製麺業者 D社 ○○円/月 ○顆粒だし製造業者 E社 ○○円/月 | Q26: ※社名・取引金額・内容等
B27: ■選定理由 | Q27: 食品卸E社 シェア○％ 食品卸F社 シェア○％
B28: ・安定して高い品質を保てている先 を確保。 ・地元の食材〇〇を栽培している 農家であり、安定した供給が可能 ① であるため。 | V28: ■選ばれている理由
V29: 問屋経由のため、エンド ユーザーの意見を吸いあげる 場面が少ないことが課題。 ④
G30: ■選定理由
G31: 社長自ら、味を確認し選定している。 当社の要望をすぐ反映してくれる先である。 ② | Q31: ■選ばれている理由
Q32: 当社商品を全国の販売店に紹介してくれている。 現在、直販ルートの構築を検討中。 ③
C43: ローカルベンチマーク及び経営デザインシートに使用される各フレームワークの構成は「gyoumuirai10」を参照
B46: １．３C分析
B47: ３C分析は、企業経営をCompany（自社）、Customer（顧客・市場）、Competitor（競合）の３つの観点から分析するもので、事業の成功要因が
B48: どこにあるかを探り出す分析法である。そのために３つのCの観点から自社の強みと弱みを認識しつつ、市場環境を的確に把握するために活用されている。
I51: 自社の強み・弱み
I52: 自社の商品・サービス
I53: 自社の市場シェア
I54: 自社の顧客
L61: どのような競合会社がいるのか
B62: どのような人が顧客なのか | L62: 競合会社の強み・弱み
B63: 顧客ニーズはどのように変化 | L63: 競合会社の商品・サービス
B64: しているか | L64: 競合会社の市場シェア
B65: 市場規模 | L65: 競合会社の顧客
B66: 市場成長性
G70: ＜ 図１ ３C分析 ＞
B73: 2．４P分析
B74: ４P分析とは、自社製品・サービスをProduct、Price、Promotion、Placeの４つの視点から分析するものである。
C78: ・品質 | L78: ・希望価格
C79: ・機能 | L79: ・割引
C80: ・パッケージのデザイン | L80: ・送料
C81: ・ブランド | L81: ・支払期間
C82: ・保証 | L82: ・利益
C83: ・製品のデザイン等 | L83: ・支払方法等
C88: ・広告宣伝 | L88: ・販売場所（店舗・オンライン）
C89: ・広報 | L89: ・配送方法
C90: ・広告媒体 | L90: ・店舗などの立地
C91: ・口コミ・SNS活用 | L91: ・品揃え
C92: ・キャッチコピー | L92: ・在庫
C93: ・販売促進活動等 | L93: ・流通範囲等
G95: ＜ 図２ ４P分析 ＞
A96: 3．Swot分析、Cross-Swot分析
A97: （１） Swot分析とは、競合や法律、市場状況といった自社を取り巻く外部環境と、自社の資産やブランド力、価格及び品質等の内部環境をプラス要因とマイナス要因に
B98: 分類して分析するものである。分類された要素は、Strength(強味）、Weakness（弱み）、Opportunity（機会）、Threat（脅威）であり、戦略策定、
B99: マーケティングの意思決定、経営資源の最適化を分析する手法である。
B100: 各要素の内容は以下の通りである。
B102: Strength（強み）：
B103: 自社や自社商品の長所や得意とするところ。内部環境のプラス要素。
B104: Weakness（弱み）：
B105: 自社や自社商品の短所や苦手とするところ。悪影響を及ぼすと考えられる内部環境のマイナス要素。
B106: Opportunity（機会）：
B107: 社会や市場の変化などにより、自社や自社商品にとってプラスに働く外部環境のプラス要素。
B108: Threat（脅威）：
B109: 社会や市場の変化などにより、自社や自社商品に悪影響を及ぼすと考えられる外部環境のマイナス要素。
A112: （２）Swot分析が重要な理由
B114: ①既存事業の改善点が見つかる。
B115: 既存事業が行き詰っている場合には、どこから改善を始めればいいか分からないこともあります。SWOT分析の4つの要素に従って、外部環境・内部環境について把握している事実
B116: を書き出すだけでも、これまで見落としていたポイントを簡単に発見することができます。
B118: ②新規事業の将来的なリスクも見つかる。
B119: 今現在、事業が好調であっても今後ずっとそうであるとは限りません。特に新しい市場で事業を始めた場合は、最初は競合がおらず一人勝ち状態であっても、より資金力がある企業
A120: が参入することで負けてしまう場合もあります。SWOT分析を活用することで、競合に負けないために必要な要素を把握することも可能です。
A122: （３）外部環境分析
B124: ①Opportunity(機会）の分析：機会では、自社にとってチャンスとなり得る市場環境の変化や、環境の変化に伴う競合他社の動きを分析する。
B126: ②Threat（脅威）の分析：脅威では、自社の強みの部分に対して影響することが考えられる市場環境の変化や、環境変化による競合他社の動向を分析する。
B128: ③機会と脅威の具体的な項目：市場規模や成長性、競合の状況、景気や経済状況、政治の状況、法律等がある。
A130: （４）内部環境分析
B132: ①Strength(強み）の分析：強みでは、競合他社と差別化できるポイントや自社商品が売れている理由など顧客視点で分析する。
B134: ②Weakness（弱み）の分析：弱みでは、競合他社にあって自社にない点や自社が苦手としていることなど企業内を客観的に整理する。
B135: なお、内部環境である弱みは自社の努力で強みに変えることができるが、外部環境である脅威は自社の努力では変えることができない点に留意する。
B136: ③弱みと強みの具体的項目：認知度、ブランド力、インフラ、価格や品質、資源、立地、サービス、技術力等がある。
B139: Swot分析の構成を下図に示す。
G162: ＜ 図３ Swot分析 ＞
A166: （5）Cross－Swot分析とは、自社に適した経営戦略を策定するためにSwot分析で抽出した強み・弱み・機会・脅威の4つの視点での情報を掛け合わせることで
B167: 、自社の経営戦略やマーケティング戦略をより具体化させる分析手法である。
B169: Cross-Swot分析の構成を下図に示す。
F193: ＜ 図４ CrossーSwot分析 ＞
C195: （６）CrossーSwot分析の事例
G219: ＜ 図５ Swot分析 ＞
F246: ＜ 図６ CrossーSwot分析 ＞
A249: ４．５フォース分析
A250: ５フォース分析は競争要因となる５つの要素である業界内の競争、代替品の脅威、新規参入者の脅威、買い手の交渉力、売り手の交渉力を分析するものである。
A251: 市場内の競合他社と顧客を含めた外部環境を調査し、自社の収入増加や新規参入の見込みを分析する。
F281: ＜ 図７ ５フォース分析 ＞
A282: ５．PEST分析
A283: PEST分析とは、Politics(政治）、Economy（経済）、Society（社会）、Technology（技術）の４つの要因を考慮したもので、主に経営戦略、海外戦略等の
A284: 策定、マーケッティングを行う際に使用し、自社を取り巻くマクロ環境が現在または将来にどのような影響を与えるか分析するものである。
F311: ＜ 図８ PEST分析 ＞
C315: Pollitics：政治的要因 | E315: Society：社会的要因 | G315: Economy:経済的要因 | I315: Technology：技術的要因
A317: ・国際情勢（戦争、紛争を含む） | E317: ・人口動態の変化 | G317: ・経済成長率 | I317: ・インフラ整備
A318: ・法律、条令、条約の改正 | E318: ・社会問題 | G318: ・景気動向 | I318: ・技術革新
A319: ・判例 | E319: ・世論の動向 | G319: ・株価の変化 | I319: ・特許
A320: ・規制緩和、強化 | E320: ・流行 | G320: ・金利の変化 | I320: ・イノベーション等
A321: ・税制の変化 | E321: ・生活習慣 | G321: ・為替動向の変化
A322: ・補助金制度、交付金制度の変化 | E322: ・ライフスタイル | G322: ・原油価格の変化
A323: ・政策の変化 | E323: ・教育制度の変化 | G323: ・雇用情勢（失業率など）
A324: ・政権交代 | E324: ・宗教 | G324: ・賃金動向の変化
B326: ６．バリューチェーン分析とは、企業が行う事業活動を価値創造のための一連の流れ、すなわち価値連鎖として捉えるものである。企業が
B327: 生み出す付加価値は、各事業が創出した価値を単純に合計したものではなく、それぞれの事業が複雑に絡み合うことによって連鎖した価値で
B328: あるバリューチェーンであると考えられる。
B329: すなわち、いくつもの事業が重なり合って生み出される価値は、競合他社が真似ができないもので、競合他社との差別化や、経資源の
B330: 配分、自社の強みや弱みなどが検討可能である。
B331: バリューチェーンは企業における事業活動を主活動と支援活動の２つに分け、構造を細かく捉えていく考えである。
B332: ①主活動は、製品やサービスを生み出して顧客に提供するまでの一連の流れに関して、直接的に関わる事業活動をいう。
B333: 例えば、製造業では購買物流、製造、出荷物流、販売・マーケティング、サービスに分類することができる。
B334: ここで、購買物流とは、製品を製造するために原材料の入手・貯蔵・配分などを行う活動をいい、製造は設備のメンテナンスなども含めた、
B335: 原材料を加工して製造するための活動をいう。また、出荷物流は梱包・保管・輸送・受注処理など製造した製品を倉庫や店舗に運ぶ活動
B336: 全般をいい、販売、マーケティングは製品の販売や広告・販促・営業活動をいい、サービスとは製品やサービスを提供した後の修理・メンテナンス
B337: などのアフターサービス、問い合わせに対する対応等をいう。
B338: ②支援活動は、主活動を支えるための活動をいい、一般には全般管理、人事・労務管理、技術開発、調達等が考えられる。
B339: 全般管理は経営企画・財務・総務等企業活動が円滑に行われるための支援活動をいい、人事・労務管理は給与の支払いや社会保険の
B340: 手続、社員教育などの活動をいう。また、技術開発は製品開発や品質向上、生産工程の効率化など技術に関する全般の活動をいい、調達は
B341: 社外から必要な原材料や物品・サービスなどを購入したり、契約したりする活動のことをいう。
B342: ③バリューチェーン分析の効果
B343: ⅰ）事業活動のコストの把握
B344: ⅱ）経営資源の配分方法の明確化
B345: ⅲ）自社の強みと弱みの客観的把握
B346: ⅳ）競合他社との相違の把握
B348: ④バリューチェーン分析のステップ
B349: ⅰ）自社のバリューチェーンの把握
B350: バリューチェーンを構成する活動は業界や業種によって異なるため、
B351: 自社が取り扱う事業における一般的なバリューチェーンを細かく分ける
B352: ことによって、正確な把握が求められる。製造業の主活動を図９に示す。
D368: ＜ 図９ 製造業のバリューチェーンの主活動 ＞
B371: ⅱ）コストの分析
B372: コストを分析することにより、活動ごとの収益性やコストを明確に把握することが可能となる。
B373: 例えば、表１のように整理する。また、各活動にかかっているコストの比率を計算し可視化するコスト比率の計算、
B374: コストがどのような要因に影響しているのかを分析する（例：人件費、設備費等）コストドライバーの分析、及び
B375: 各活動間でコストがどのような関連性を持つのかを調査する（例：○○のコストを削減すると、その分××のコストが増大する）
B376: コストの関連性調査を行うことにより効率的な活動と非効率的な活動が明確に区分されコスト削減の方法が把握できる。
D380: 活動 | E380: 担当部署 | F380: 年間コスト（単位：100万円）
D381: 購買 | E381: 購買部 | F381: 300
D382: 製造 | E382: A工場 | F382: 1,500
E383: B工場 | F383: 700
E384: C工場 | F384: 800
D385: 計 | F385: 3,000
D386: 販売 | E386: 本社営業部 | F386: 900
E387: 海外営業部 | F387: 500
D388: 計 | F388: 1,400
E390: ＜ 表１ 製造業のコスト一覧 ＞
B394: ⅲ）強み・弱みの分析
B395: 各活動が持っている強みと弱みを分析し事業の現状を正しく把握し、今後の戦略に活用する。
B396: 例えば、卸売業の強みと弱みを表２のように整理する。
E423: ＜ 表２ 卸売業の強みと弱み ＞
B427: ⅳ）VRIO分析
B428: VRIOによる経営資源の競争優位性分析を行い、組織が持つ内部資源を有効に活用する。
B429: VRIO分析ではValue(経済価値）、Rarity(希少性）、Imitability(模倣可能性）、Organization(組織）の各評価視点
B430: が満たされるかどうかの解析を行う。
B431: なお、各項目の評価視点は以下のとおりである。
B433: a)Value:自社の経営資源が、外部環境（機会）を利用したり、外部環境（脅威）を軽減したりするなどして、経済的価値を生む
B434: ことができるかどうかを分析する。
B436: b)Rarity:自社の経営資源が希少であるか、他社では同様の経営資源を有していないかどうかを分析する。
B439: ｃ）Imitability:その経営資源を競合他社が模倣するのが困難かどうかを分析する。
B442: ｄ）Ｏrganization:その経営資源を有効活用する組織的な方針や手続きが整っているかどうかを分析する。
B444: ４つの項目に対してYESorNOの５段階評価で判定を行い、４つすべてがYESの場合は経営資源の最大活用で、
B445: 競争優位であり、NOがある場合はなんらかの改善が必要であると判断される（表３参照）。
E466: ＜ 表３ VRIO分析の例 ＞
B469: ７．大手企業と中小企業のとる企業戦略
B470: 大手企業は豊富な経営資源を活用して、中小企業の経営戦略である差別化に対抗すべきである。
B471: 一方、中小企業は限定された市場セグメントで優位となるため、競合他社より安く便利な商品を開発し、
B472: 入手し易い販売経路で売るとともにアフターサービスも充実させるべきである。
B473: その理由は、
B474: 企業の競争力＝商品力・サービス力×販売力＝（質的経営資源）×（量的経営資源）²
B475: であり、中小企業は大手企業に比べていずれも劣っているからである。
B476: 大手企業と中小企業の個別戦略は以下のとおりである。
D478: ＜ 表１ ＞
C479: 中小企業の戦略 | D479: 個別戦略 | E479: 大手企業の戦略
C480: 差別化戦略 | D480: 基本戦略 | E480: ミート戦略
C481: １点集中戦略 | D481: 商品販売戦略 | E481: 総合戦略
C482: 局地戦略 | D482: ニッチ戦略 | E482: 広域戦略
C483: 接近戦略 | D483: CRM戦略 | E483: 遠隔戦略
C484: 陽動戦略 | D484: 新ビジネス戦略 | E484: 誘導戦略
C486: 中小企業の戦略 | D486: 各 戦 略 の 内 容 | H486: 個別戦略
C487: 差別化戦略 | D487: 商品の質（価格、サービス、信頼性等）において他社よりも上回る戦略 | H487: 基本戦略
C488: １点集中戦略 | D488: １番になりそうな地域、販売経路、客層を細分化し、経営資源を集中する戦略 | H488: 商品販売戦略
C489: 局地戦略 | D489: 自社の強みを発揮できる営業地域やビジネス領域を限定する戦略 | H489: ニッチ戦略
C490: 接近戦略 | D490: 直販を重視し、自ら顧客との友好な関係性を構築する戦略 | H490: CRM戦略
C491: 陽動戦略 | D491: No.1企業やライバル企業ができないビジネスを素早く展開する戦略 | H491: 新ビジネス戦略
B495: ８．BSC（バランススコアカード）
B496: （１）BSCの４つの視点で経営課題を解決するための各視点の因果関係は以下のとおりである。
B497: ①人材と変革の視点：人材を育成して能力を向上させ業務を活性化させる。
B498: ②業務プロセスの視点：業務の活性化による生産性向上で顧客満足度を高める。
B499: ③顧客の視点：顧客満足度を高めることにより顧客を開拓して受注量を増加させる。
B500: ④財務の視点：受注量の増加により収益性を高め企業を成長発展させる。
F508: ＜ 図７ BSCの関係＞
B518: （２）各戦略ごとに各視点の目的、目標等を検討する。 | F518: ＜ 表２ ＞
C520: BSCの視点 | D520: 業務活性戦略 | E520: 生産戦略 | F520: 営業戦略 | G520: 製品開発戦略
C521: 財務の視点 | D521: 経営コスト低減 | E521: 収益性の向上 | F521: 売上高の向上 | G521: 市場規模適合
... 22 more rows

Sheet 【入力】4つの視点
W1: 商号 | AA1: =【入力】財務分析!D5 -> 株式会社○○
W2: 売上高 | AA2: =【入力】財務分析!D26 -> 5,130,250(千円)
W3: 営業利益 | AA3: =【入力】財務分析!D28 -> 15,000(千円)
W4: 従業員数 | AA4: =【入力】財務分析!$D$12 -> 30(人)
B6: ①経営者 | C6: 経営理念・ビジョン | F6: 「地元とともに発展していく事業を常に検討し、実施していく」が経営理念。社員に対しては、①社会的な責任を果たすこと、②常にチャレンジすること、③感動を創造できる人間を目指すこと、を方針として伝えている。 経営の見える化を行っている。試算表を開示し損益分岐点の開示による経営感覚の醸成をしている。 | R6: ③企業を取り巻く環境・関係者 | S6: 市場動向・規模・シェアの把握 | V6: 地元の○○食材を使った商品を製造している企業は当社のみである。 しかし、地域特産品を使った食品というカテゴリーでの認知度はまだ低い。 市場は健康志向がより高まっている状況であるため今後営業体制の強化を行う。
C7: 経営哲学・考え・方針等 | S7: 競合他社との比較
S9: 顧客リピート率・新規開拓率 | V9: 当社商品のリピート率は高いと聞いているが、問屋経由のためユーザーの声を直接吸い上げる仕組みになっていないため、詳細を把握できていない。 直販としてSNSを利用した直接プロモーションを行い、オンライン販売している。
S10: 主な取引先企業の推移
S11: 顧客からのフィードバックの有無
C12: 経営意欲 | F12: 今年度操業〇〇年目であるが、まだまだできることは多いと考えている。目標としている売上高○○億円を目指して社長自ら直販先の開拓のための営業を行っている。 健康に良い商品づくりへの取り組み意欲が高い。 | S12: 従業員定着率 | V12: 定着率100％、平均年齢は40％である。 県内の他の企業と比較し平均年齢はかなり若い。給与制度について、成果が十分に反映される仕組みを検討している。
C13: ※成長志向・現状維持など | S13: 勤続年数・平均給与
C15: 後継者の有無 | F15: 後継者は経営企画会議のメンバー全員の推薦で選んだ候補者がいる。 現在は専務として経営全般について学ばせている。 前任者が実施したことを洗い直し、引継ぎに備えている。 | S15: 取引金融機関数・推移 | V15: 現在は地元○○銀行がメインで、準メインは△△信金である。 ○○銀行は毎月本部職員同行で訪問してきてくれる。
C16: 後継者の育成状況 | S16: メインバンクとの関係
C17: 承継のタイミング・関係
B18: ②事業 | C18: 企業及び事業沿革 | F18: ○○年に現在の社長と副社長の2名で創業する。 当時は東京都内で飲食店３件の運営をしていたが、地元に貢献したいと考え、都内の店を閉じて現在の本社に移転し、その後、○○年に食品製造部門を設立し現在に至る。 | R18: ④内部管理体制 | S18: 組織体制 | V18: 品質管理についてITシステムを導入し見える化している。 一方で。企業の成長に人事制度が追いついていないため、社員が平等な評価となるよう人事評価システムの刷新を実施中。
C19: ※ターニングポイントの把握 | S19: 品質管理・情報管理体制
C21: 強み | F21: 自社で一貫して提供可能なデザイン・公告技術は最大の強みである。 当社商品を見て、公告や、ラベルデザインの制作依頼を受けるほどである。デザイン力などは商品のブランディングにも生きている。健康によい商品づくりへの取り組みを行っている。 | S21: 事業計画・経営計画の有無 | V21: ○○銀行にも協力してもらい、向こう5年間の事業計画を本年ド策定。 従業員にも共有しており、目指す方向性を理解してもらっている。 商品開発会議は社長以下の従業員が全員参加しアイデアを出している。
C22: 技術力・販売力等 | S22: 従業員との共有状況
S23: 社内会議の実施状況
C24: 弱み | F24: 販路が問屋経由となっており、大手スーパーなどへの直販ルートに課題がある。 また、製造部門についてもまだまだ内製化の余地がある。 売上拡大に伴い、原材料の安定仕入も今後課題となりうる。 | S24: 研究開発・商品開発の体制 | V24: 人々がより健康的に暮らせるために、従来よりも効果効能の高い商品開発を地元の大学と共同で行っており、製品開発における特許侵害調査を実施中。 現在外注している製造工程の内製化を目指して、試行錯誤を繰り返している。
C25: 技術力・販売力等 | S25: 知的財産権の保有・活用状況
C27: ITに関する投資、活用の状況 | F27: 在庫管理・製造管理に関するシステムを入れており、滞留在庫や歩留まり率について経営陣がすぐに把握できる体制となっている。経理業務もクラウド会計を導入して効率化し、 ３名いた経理担当を１名商品開発に移動できた。 | S27: 人材育成の取り組み状況 | V27: 地元商工会議所の研修を活用し、部長クラス以上には財務諸表の読み方等の理解に取り組んでいる。 法令順守や労務管理、個人情報の取り扱い等のに関する外部の教育研修の受講を行う。
C28: 1時間当たり付加価値（生産性） | S28: 人材育成の仕組み
C29: 向上に向けた取り組み
B31: 現状認識 | C31: 顧客提供価値を実現するために地元食材と健康を結びつける仕組みがあり、地元農家からの調達や大学との連携・商品開発力といった取り組みで実現している。今年度で創業○○年であるが、売上は拡大し、人員も増加している。今後更なる事業拡大のためには、直販ルートの開拓や、人事制度の見直しが必要と認識している。顧客提供価値をさらに高めていくためにエンドユーザーの声を拾い上げる仕組み（SNS,HPの活用）を作り、大学との連携と商品開発力をより一層強化していく必要性を認識している。 | R31: 将来目標 | S31: 地元の○○食材を使った当社商品が全国のスーパーなどで扱われる消費者に親しまれることを目指す。SNS登録者○○人から１年後に○○人、３年後に○○人を目指す。 ○○年度までに売上○○億円を達成するために、直販で○○億円の売上確保と、安定した商品供給のための製造工程の完全内製化を目標とする。 労働環境を整備し、○○年度までに平均勤続年数を〇年にする。
U35: 現状と目標のギャップ
G36: 課題 | H36: SNSの毎日更新とお客様意見への回答、ネット広告の活用。 直販強化のためにSNSとの連携強化とSNSなどの声を反映した商品開発、商品ラインナップの増加。 製造の内製化や企業理念に沿った職場環境や人材像を明文化し、制度を整える。 | R36: 対応策 | S36: SNSでのお客様の声を毎月の定例会で共有し、品質改善だけでなく、商品開発を目的に商品開発担当に流れていく組織的な仕組みづくりを行う。 食品業界で営業実績のある人物の中途採用のために求人サイトへ登録を行う。 制度作りは地元商工会議所を経由して専門家を紹介してもらうことを検討する。

Sheet 【参照】業種
C2: ※下記の表は日本標準分類とローカルベンチマーク業種の変換表です。 ご自身の日本標準分類上の該当する細分類をご確認いただき（青色のセル）、右側の黄色いセルをご覧ください。 ローカルベンチマーク業種分類をご確認いただきましたら、左上のオレンジ色のボタンを押して、財務分析シートにお戻りください。
A3: 日本標準分類 | D3: 【入力】財務分析 [ローカルベンチマーク業種_ 大分類]に該当 | E3: 【入力】財務分析シート [ローカルベンチマーク業種 _小分類]に該当
A4: 日本標準分類 _大分類 | B4: 日本標準分類 _中分類 | C4: 日本標準分類 _細分類
A5: A_農業，林業 | B5: 01_農業 | C5: 0100_主として管理事務を行う本社等 | D5: 01_農業 | E5: 0101_農業
A6: A_農業，林業 | B6: 01_農業 | C6: 0109_その他の管理，補助的経済活動を行う事業所 | D6: 01_農業 | E6: 0101_農業
A7: A_農業，林業 | B7: 01_農業 | C7: 0111_米作農業 | D7: 01_農業 | E7: 0101_農業
A8: A_農業，林業 | B8: 01_農業 | C8: 0112_米作以外の穀作農業 | D8: 01_農業 | E8: 0101_農業
A9: A_農業，林業 | B9: 01_農業 | C9: 0113_野菜作農業（きのこ類の栽培を含む） | D9: 01_農業 | E9: 0101_農業
A10: A_農業，林業 | B10: 01_農業 | C10: 0114_果樹作農業 | D10: 01_農業 | E10: 0101_農業
A11: A_農業，林業 | B11: 01_農業 | C11: 0115_花き作農業 | D11: 01_農業 | E11: 0101_農業
A12: A_農業，林業 | B12: 01_農業 | C12: 0116_工芸農作物農業 | D12: 01_農業 | E12: 0101_農業
A13: A_農業，林業 | B13: 01_農業 | C13: 0117_ばれいしょ・かんしょ作農業 | D13: 01_農業 | E13: 0101_農業
A14: A_農業，林業 | B14: 01_農業 | C14: 0119_その他の耕種農業 | D14: 01_農業 | E14: 0101_農業
A15: A_農業，林業 | B15: 01_農業 | C15: 0121_酪農業 | D15: 01_農業 | E15: 0101_農業
A16: A_農業，林業 | B16: 01_農業 | C16: 0122_肉用牛生産業 | D16: 01_農業 | E16: 0101_農業
A17: A_農業，林業 | B17: 01_農業 | C17: 0123_養豚業 | D17: 01_農業 | E17: 0101_農業
A18: A_農業，林業 | B18: 01_農業 | C18: 0124_養鶏業 | D18: 01_農業 | E18: 0101_農業
A19: A_農業，林業 | B19: 01_農業 | C19: 0125_畜産類似業 | D19: 01_農業 | E19: 0101_農業
A20: A_農業，林業 | B20: 01_農業 | C20: 0126_養蚕農業 | D20: 01_農業 | E20: 0101_農業
A21: A_農業，林業 | B21: 01_農業 | C21: 0129_その他の畜産農業 | D21: 01_農業 | E21: 0101_農業
A22: A_農業，林業 | B22: 01_農業 | C22: 0131_穀作サービス業 | D22: 01_農業 | E22: 0101_農業
A23: A_農業，林業 | B23: 01_農業 | C23: 0132_野菜作・果樹作サービス業 | D23: 01_農業 | E23: 0101_農業
A24: A_農業，林業 | B24: 01_農業 | C24: 0133_穀作、野菜作・果樹作以外の耕種サービス業 | D24: 01_農業 | E24: 0101_農業
A25: A_農業，林業 | B25: 01_農業 | C25: 0134_畜産サービス業（獣医業を除く） | D25: 01_農業 | E25: 0101_農業
A26: A_農業，林業 | B26: 01_農業 | C26: 0141_園芸サービス業 | D26: 01_農業 | E26: 0101_農業
A27: A_農業，林業 | B27: 02_林業 | C27: 0200_主として管理事務を行う本社等 | D27: 14_その他 | E27: 1400_その他業種
A28: A_農業，林業 | B28: 02_林業 | C28: 0209_その他の管理，補助的経済活動を行う事業所 | D28: 14_その他 | E28: 1400_その他業種
A29: A_農業，林業 | B29: 02_林業 | C29: 0211_育林業 | D29: 14_その他 | E29: 1400_その他業種
A30: A_農業，林業 | B30: 02_林業 | C30: 0221_素材生産業 | D30: 14_その他 | E30: 1400_その他業種
A31: A_農業，林業 | B31: 02_林業 | C31: 0231_製薪炭業 | D31: 14_その他 | E31: 1400_その他業種
A32: A_農業，林業 | B32: 02_林業 | C32: 0239_その他の特用林産物生産業（きのこ類の栽培を除く） | D32: 14_その他 | E32: 1400_その他業種
A33: A_農業，林業 | B33: 02_林業 | C33: 0241_育林サービス業 | D33: 14_その他 | E33: 1400_その他業種
A34: A_農業，林業 | B34: 02_林業 | C34: 0242_素材生産サービス業 | D34: 14_その他 | E34: 1400_その他業種
A35: A_農業，林業 | B35: 02_林業 | C35: 0243_山林種苗生産サービス業 | D35: 14_その他 | E35: 1400_その他業種
A36: A_農業，林業 | B36: 02_林業 | C36: 0249_その他の林業サービス業 | D36: 14_その他 | E36: 1400_その他業種
A37: A_農業，林業 | B37: 02_林業 | C37: 0299_その他の林業 | D37: 14_その他 | E37: 1400_その他業種
A38: B_漁業 | B38: 03_漁業（水産養殖業を除く） | C38: 0300_主として管理事務を行う本社等 | D38: 14_その他 | E38: 1400_その他業種
A39: B_漁業 | B39: 03_漁業（水産養殖業を除く） | C39: 0309_その他の管理，補助的経済活動を行う事業所 | D39: 14_その他 | E39: 1400_その他業種
A40: B_漁業 | B40: 03_漁業（水産養殖業を除く） | C40: 0311_底びき網漁業 | D40: 14_その他 | E40: 1400_その他業種
A41: B_漁業 | B41: 03_漁業（水産養殖業を除く） | C41: 0312_まき網漁業 | D41: 14_その他 | E41: 1400_その他業種
A42: B_漁業 | B42: 03_漁業（水産養殖業を除く） | C42: 0313_刺網漁業 | D42: 14_その他 | E42: 1400_その他業種
A43: B_漁業 | B43: 03_漁業（水産養殖業を除く） | C43: 0314_釣・はえ縄漁業 | D43: 14_その他 | E43: 1400_その他業種
A44: B_漁業 | B44: 03_漁業（水産養殖業を除く） | C44: 0315_定置網漁業 | D44: 14_その他 | E44: 1400_その他業種
A45: B_漁業 | B45: 03_漁業（水産養殖業を除く） | C45: 0316_地びき網・船びき網漁業 | D45: 14_その他 | E45: 1400_その他業種
A46: B_漁業 | B46: 03_漁業（水産養殖業を除く） | C46: 0317_採貝・採藻業 | D46: 14_その他 | E46: 1400_その他業種
A47: B_漁業 | B47: 03_漁業（水産養殖業を除く） | C47: 0318_捕鯨業 | D47: 14_その他 | E47: 1400_その他業種
A48: B_漁業 | B48: 03_漁業（水産養殖業を除く） | C48: 0319_その他の海面漁業 | D48: 14_その他 | E48: 1400_その他業種
A49: B_漁業 | B49: 03_漁業（水産養殖業を除く） | C49: 0321_内水面漁業 | D49: 14_その他 | E49: 1400_その他業種
A50: B_漁業 | B50: 04_水産養殖業 | C50: 0400_主として管理事務を行う本社等 | D50: 14_その他 | E50: 1400_その他業種
A51: B_漁業 | B51: 04_水産養殖業 | C51: 0409_その他の管理，補助的経済活動を行う事業所 | D51: 14_その他 | E51: 1400_その他業種
A52: B_漁業 | B52: 04_水産養殖業 | C52: 0411_魚類養殖業 | D52: 14_その他 | E52: 1400_その他業種
A53: B_漁業 | B53: 04_水産養殖業 | C53: 0412_貝類養殖業 | D53: 14_その他 | E53: 1400_その他業種
A54: B_漁業 | B54: 04_水産養殖業 | C54: 0413_藻類養殖業 | D54: 14_その他 | E54: 1400_その他業種
A55: B_漁業 | B55: 04_水産養殖業 | C55: 0414_真珠養殖業 | D55: 14_その他 | E55: 1400_その他業種
A56: B_漁業 | B56: 04_水産養殖業 | C56: 0415_種苗養殖業 | D56: 14_その他 | E56: 1400_その他業種
A57: B_漁業 | B57: 04_水産養殖業 | C57: 0419_その他の海面養殖業 | D57: 14_その他 | E57: 1400_その他業種
A58: B_漁業 | B58: 04_水産養殖業 | C58: 0421_内水面養殖業 | D58: 14_その他 | E58: 1400_その他業種
A59: C_鉱業，採石業，砂利採取業 | B59: 05_鉱業，採石業，砂利採取業 | C59: 0500_主として管理事務を行う本社等 | D59: 14_その他 | E59: 1400_その他業種
A60: C_鉱業，採石業，砂利採取業 | B60: 05_鉱業，採石業，砂利採取業 | C60: 0509_その他の管理，補助的経済活動を行う事業所 | D60: 14_その他 | E60: 1400_その他業種
A61: C_鉱業，採石業，砂利採取業 | B61: 05_鉱業，採石業，砂利採取業 | C61: 0511_金・銀鉱業 | D61: 14_その他 | E61: 1400_その他業種
A62: C_鉱業，採石業，砂利採取業 | B62: 05_鉱業，採石業，砂利採取業 | C62: 0512_鉛・亜鉛鉱業 | D62: 14_その他 | E62: 1400_その他業種
A63: C_鉱業，採石業，砂利採取業 | B63: 05_鉱業，採石業，砂利採取業 | C63: 0513_鉄鉱業 | D63: 14_その他 | E63: 1400_その他業種
A64: C_鉱業，採石業，砂利採取業 | B64: 05_鉱業，採石業，砂利採取業 | C64: 0519_その他の金属鉱業 | D64: 14_その他 | E64: 1400_その他業種
A65: C_鉱業，採石業，砂利採取業 | B65: 05_鉱業，採石業，砂利採取業 | C65: 0521_石炭鉱業（石炭選別業を含む） | D65: 14_その他 | E65: 1400_その他業種
A66: C_鉱業，採石業，砂利採取業 | B66: 05_鉱業，採石業，砂利採取業 | C66: 0522_亜炭鉱業 | D66: 14_その他 | E66: 1400_その他業種
A67: C_鉱業，採石業，砂利採取業 | B67: 05_鉱業，採石業，砂利採取業 | C67: 0531_原油鉱業 | D67: 14_その他 | E67: 1400_その他業種
A68: C_鉱業，採石業，砂利採取業 | B68: 05_鉱業，採石業，砂利採取業 | C68: 0532_天然ガス鉱業 | D68: 14_その他 | E68: 1400_その他業種
A69: C_鉱業，採石業，砂利採取業 | B69: 05_鉱業，採石業，砂利採取業 | C69: 0541_花こう岩・同類似岩石採石業 | D69: 14_その他 | E69: 1400_その他業種
A70: C_鉱業，採石業，砂利採取業 | B70: 05_鉱業，採石業，砂利採取業 | C70: 0542_石英粗面岩・同類似岩石採石業 | D70: 14_その他 | E70: 1400_その他業種
A71: C_鉱業，採石業，砂利採取業 | B71: 05_鉱業，採石業，砂利採取業 | C71: 0543_安山岩・同類似岩石採石業 | D71: 14_その他 | E71: 1400_その他業種
A72: C_鉱業，採石業，砂利採取業 | B72: 05_鉱業，採石業，砂利採取業 | C72: 0544_大理石採石業 | D72: 14_その他 | E72: 1400_その他業種
A73: C_鉱業，採石業，砂利採取業 | B73: 05_鉱業，採石業，砂利採取業 | C73: 0545_ぎょう灰岩採石業 | D73: 14_その他 | E73: 1400_その他業種
A74: C_鉱業，採石業，砂利採取業 | B74: 05_鉱業，採石業，砂利採取業 | C74: 0546_砂岩採石業 | D74: 14_その他 | E74: 1400_その他業種
A75: C_鉱業，採石業，砂利採取業 | B75: 05_鉱業，採石業，砂利採取業 | C75: 0547_粘板岩採石業 | D75: 14_その他 | E75: 1400_その他業種
A76: C_鉱業，採石業，砂利採取業 | B76: 05_鉱業，採石業，砂利採取業 | C76: 0548_砂・砂利・玉石採取業 | D76: 14_その他 | E76: 1400_その他業種
A77: C_鉱業，採石業，砂利採取業 | B77: 05_鉱業，採石業，砂利採取業 | C77: 0549_その他の採石業、砂・砂利・玉石採取業 | D77: 14_その他 | E77: 1400_その他業種
A78: C_鉱業，採石業，砂利採取業 | B78: 05_鉱業，採石業，砂利採取業 | C78: 0551_耐火粘土鉱業 | D78: 14_その他 | E78: 1400_その他業種
A79: C_鉱業，採石業，砂利採取業 | B79: 05_鉱業，採石業，砂利採取業 | C79: 0552_ろう石鉱業 | D79: 14_その他 | E79: 1400_その他業種
A80: C_鉱業，採石業，砂利採取業 | B80: 05_鉱業，採石業，砂利採取業 | C80: 0553_ドロマイト鉱業 | D80: 14_その他 | E80: 1400_その他業種
A81: C_鉱業，採石業，砂利採取業 | B81: 05_鉱業，採石業，砂利採取業 | C81: 0554_長石鉱業 | D81: 14_その他 | E81: 1400_その他業種
A82: C_鉱業，採石業，砂利採取業 | B82: 05_鉱業，採石業，砂利採取業 | C82: 0555_けい石鉱業 | D82: 14_その他 | E82: 1400_その他業種
A83: C_鉱業，採石業，砂利採取業 | B83: 05_鉱業，採石業，砂利採取業 | C83: 0556_天然けい砂鉱業 | D83: 14_その他 | E83: 1400_その他業種
A84: C_鉱業，採石業，砂利採取業 | B84: 05_鉱業，採石業，砂利採取業 | C84: 0557_石灰石鉱業 | D84: 14_その他 | E84: 1400_その他業種
A85: C_鉱業，採石業，砂利採取業 | B85: 05_鉱業，採石業，砂利採取業 | C85: 0559_その他の窯業原料用鉱物鉱業 | D85: 14_その他 | E85: 1400_その他業種
A86: C_鉱業，採石業，砂利採取業 | B86: 05_鉱業，採石業，砂利採取業 | C86: 0591_酸性白土鉱業 | D86: 14_その他 | E86: 1400_その他業種
A87: C_鉱業，採石業，砂利採取業 | B87: 05_鉱業，採石業，砂利採取業 | C87: 0592_ベントナイト鉱業 | D87: 14_その他 | E87: 1400_その他業種
A88: C_鉱業，採石業，砂利採取業 | B88: 05_鉱業，採石業，砂利採取業 | C88: 0593_けいそう土鉱業 | D88: 14_その他 | E88: 1400_その他業種
A89: C_鉱業，採石業，砂利採取業 | B89: 05_鉱業，採石業，砂利採取業 | C89: 0594_滑石鉱業 | D89: 14_その他 | E89: 1400_その他業種
A90: C_鉱業，採石業，砂利採取業 | B90: 05_鉱業，採石業，砂利採取業 | C90: 0599_他に分類されない鉱業 | D90: 14_その他 | E90: 1400_その他業種
A91: D_建設業 | B91: 06_総合工事業 | C91: 0600_主として管理事務を行う本社等 | D91: 02_建設業 | E91: 0201_建設業
A92: D_建設業 | B92: 06_総合工事業 | C92: 0609_その他の管理，補助的経済活動を行う事業所 | D92: 02_建設業 | E92: 0201_建設業
A93: D_建設業 | B93: 06_総合工事業 | C93: 0611_一般土木建築工事業 | D93: 02_建設業 | E93: 0201_建設業
A94: D_建設業 | B94: 06_総合工事業 | C94: 0621_土木工事業（別掲を除く） | D94: 02_建設業 | E94: 0201_建設業
A95: D_建設業 | B95: 06_総合工事業 | C95: 0622_造園工事業 | D95: 02_建設業 | E95: 0201_建設業
A96: D_建設業 | B96: 06_総合工事業 | C96: 0623_しゅんせつ工事業 | D96: 02_建設業 | E96: 0201_建設業
A97: D_建設業 | B97: 06_総合工事業 | C97: 0631_舗装工事業 | D97: 02_建設業 | E97: 0201_建設業
A98: D_建設業 | B98: 06_総合工事業 | C98: 0641_建築工事業（木造建築工事業を除く） | D98: 02_建設業 | E98: 0201_建設業
A99: D_建設業 | B99: 06_総合工事業 | C99: 0651_木造建築工事業 | D99: 02_建設業 | E99: 0201_建設業
A100: D_建設業 | B100: 06_総合工事業 | C100: 0661_建築リフォーム工事業 | D100: 02_建設業 | E100: 0201_建設業
A101: D_建設業 | B101: 07_職別工事業(設備工事業を除く) | C101: 0700_主として管理事務を行う本社等 | D101: 02_建設業 | E101: 0201_建設業
A102: D_建設業 | B102: 07_職別工事業(設備工事業を除く) | C102: 0709_その他の管理，補助的経済活動を行う事業所 | D102: 02_建設業 | E102: 0201_建設業
A103: D_建設業 | B103: 07_職別工事業(設備工事業を除く) | C103: 0711_大工工事業（型枠大工工事業を除く） | D103: 02_建設業 | E103: 0201_建設業
A104: D_建設業 | B104: 07_職別工事業(設備工事業を除く) | C104: 0712_型枠大工工事業 | D104: 02_建設業 | E104: 0201_建設業
A105: D_建設業 | B105: 07_職別工事業(設備工事業を除く) | C105: 0721_とび工事業 | D105: 02_建設業 | E105: 0201_建設業
A106: D_建設業 | B106: 07_職別工事業(設備工事業を除く) | C106: 0722_土工・コンクリート工事業 | D106: 02_建設業 | E106: 0201_建設業
A107: D_建設業 | B107: 07_職別工事業(設備工事業を除く) | C107: 0723_特殊コンクリート工事業 | D107: 02_建設業 | E107: 0201_建設業
A108: D_建設業 | B108: 07_職別工事業(設備工事業を除く) | C108: 0731_鉄骨工事業 | D108: 02_建設業 | E108: 0201_建設業
A109: D_建設業 | B109: 07_職別工事業(設備工事業を除く) | C109: 0732_鉄筋工事業 | D109: 02_建設業 | E109: 0201_建設業
A110: D_建設業 | B110: 07_職別工事業(設備工事業を除く) | C110: 0741_石工工事業 | D110: 02_建設業 | E110: 0201_建設業
A111: D_建設業 | B111: 07_職別工事業(設備工事業を除く) | C111: 0742_れんが工事業 | D111: 02_建設業 | E111: 0201_建設業
A112: D_建設業 | B112: 07_職別工事業(設備工事業を除く) | C112: 0743_タイル工事業 | D112: 02_建設業 | E112: 0201_建設業
A113: D_建設業 | B113: 07_職別工事業(設備工事業を除く) | C113: 0744_コンクリートブロック工事業 | D113: 02_建設業 | E113: 0201_建設業
A114: D_建設業 | B114: 07_職別工事業(設備工事業を除く) | C114: 0751_左官工事業 | D114: 02_建設業 | E114: 0201_建設業
A115: D_建設業 | B115: 07_職別工事業(設備工事業を除く) | C115: 0761_金属製屋根工事業 | D115: 02_建設業 | E115: 0201_建設業
A116: D_建設業 | B116: 07_職別工事業(設備工事業を除く) | C116: 0762_板金工事業 | D116: 02_建設業 | E116: 0201_建設業
A117: D_建設業 | B117: 07_職別工事業(設備工事業を除く) | C117: 0763_建築金物工事業 | D117: 02_建設業 | E117: 0201_建設業
A118: D_建設業 | B118: 07_職別工事業(設備工事業を除く) | C118: 0771_塗装工事業（道路標示・区画線工事業を除く） | D118: 02_建設業 | E118: 0201_建設業
A119: D_建設業 | B119: 07_職別工事業(設備工事業を除く) | C119: 0772_道路標示・区画線工事業 | D119: 02_建設業 | E119: 0201_建設業
A120: D_建設業 | B120: 07_職別工事業(設備工事業を除く) | C120: 0781_床工事業 | D120: 02_建設業 | E120: 0201_建設業
A121: D_建設業 | B121: 07_職別工事業(設備工事業を除く) | C121: 0782_内装工事業 | D121: 02_建設業 | E121: 0201_建設業
A122: D_建設業 | B122: 07_職別工事業(設備工事業を除く) | C122: 0791_ガラス工事業 | D122: 02_建設業 | E122: 0201_建設業
A123: D_建設業 | B123: 07_職別工事業(設備工事業を除く) | C123: 0792_金属製建具工事業 | D123: 02_建設業 | E123: 0201_建設業
A124: D_建設業 | B124: 07_職別工事業(設備工事業を除く) | C124: 0793_木製建具工事業 | D124: 02_建設業 | E124: 0201_建設業
A125: D_建設業 | B125: 07_職別工事業(設備工事業を除く) | C125: 0794_屋根工事業（金属製屋根工事業を除く） | D125: 02_建設業 | E125: 0201_建設業
A126: D_建設業 | B126: 07_職別工事業(設備工事業を除く) | C126: 0795_防水工事業 | D126: 02_建設業 | E126: 0201_建設業
A127: D_建設業 | B127: 07_職別工事業(設備工事業を除く) | C127: 0796_解体・はつり工事業 | D127: 02_建設業 | E127: 0201_建設業
A128: D_建設業 | B128: 07_職別工事業(設備工事業を除く) | C128: 0799_他に分類されない職別工事業 | D128: 02_建設業 | E128: 0201_建設業
A129: D_建設業 | B129: 08_設備工事業 | C129: 0800_主として管理事務を行う本社等 | D129: 02_建設業 | E129: 0201_建設業
A130: D_建設業 | B130: 08_設備工事業 | C130: 0809_その他の管理，補助的経済活動を行う事業所 | D130: 02_建設業 | E130: 0201_建設業
A131: D_建設業 | B131: 08_設備工事業 | C131: 0811_一般電気工事業 | D131: 02_建設業 | E131: 0201_建設業
A132: D_建設業 | B132: 08_設備工事業 | C132: 0812_電気配線工事業 | D132: 02_建設業 | E132: 0201_建設業
A133: D_建設業 | B133: 08_設備工事業 | C133: 0821_電気通信工事業（有線テレビジョン放送設備設置工事業を除く） | D133: 02_建設業 | E133: 0201_建設業
A134: D_建設業 | B134: 08_設備工事業 | C134: 0822_有線テレビジョン放送設備設置工事業 | D134: 02_建設業 | E134: 0201_建設業
A135: D_建設業 | B135: 08_設備工事業 | C135: 0823_信号装置工事業 | D135: 02_建設業 | E135: 0201_建設業
A136: D_建設業 | B136: 08_設備工事業 | C136: 0831_一般管工事業 | D136: 02_建設業 | E136: 0201_建設業
A137: D_建設業 | B137: 08_設備工事業 | C137: 0832_冷暖房設備工事業 | D137: 02_建設業 | E137: 0201_建設業
A138: D_建設業 | B138: 08_設備工事業 | C138: 0833_給排水・衛生設備工事業 | D138: 02_建設業 | E138: 0201_建設業
A139: D_建設業 | B139: 08_設備工事業 | C139: 0839_その他の管工事業 | D139: 02_建設業 | E139: 0201_建設業
A140: D_建設業 | B140: 08_設備工事業 | C140: 0841_機械器具設置工事業（昇降設備工事業を除く） | D140: 02_建設業 | E140: 0201_建設業
A141: D_建設業 | B141: 08_設備工事業 | C141: 0842_昇降設備工事業 | D141: 02_建設業 | E141: 0201_建設業
A142: D_建設業 | B142: 08_設備工事業 | C142: 0891_築炉工事業 | D142: 02_建設業 | E142: 0201_建設業
A143: D_建設業 | B143: 08_設備工事業 | C143: 0892_熱絶縁工事業 | D143: 02_建設業 | E143: 0201_建設業
A144: D_建設業 | B144: 08_設備工事業 | C144: 0893_道路標識設置工事業 | D144: 02_建設業 | E144: 0201_建設業
A145: D_建設業 | B145: 08_設備工事業 | C145: 0894_さく井工事業 | D145: 02_建設業 | E145: 0201_建設業
A146: E_製造業 | B146: 09_食料品製造業 | C146: 0900_主として管理事務を行う本社等 | D146: 03_製造業 | E146: 0301_食料品・飼料・飲料製造業
A147: E_製造業 | B147: 09_食料品製造業 | C147: 0909_その他の管理，補助的経済活動を行う事業所 | D147: 03_製造業 | E147: 0301_食料品・飼料・飲料製造業
A148: E_製造業 | B148: 09_食料品製造業 | C148: 0911_部分肉・冷凍肉製造業 | D148: 03_製造業 | E148: 0301_食料品・飼料・飲料製造業
A149: E_製造業 | B149: 09_食料品製造業 | C149: 0912_肉加工品製造業 | D149: 03_製造業 | E149: 0301_食料品・飼料・飲料製造業
A150: E_製造業 | B150: 09_食料品製造業 | C150: 0913_処理牛乳・乳飲料製造業 | D150: 03_製造業 | E150: 0301_食料品・飼料・飲料製造業
A151: E_製造業 | B151: 09_食料品製造業 | C151: 0914_乳製品製造業（処理牛乳、乳飲料を除く） | D151: 03_製造業 | E151: 0301_食料品・飼料・飲料製造業
A152: E_製造業 | B152: 09_食料品製造業 | C152: 0919_その他の畜産食料品製造業 | D152: 03_製造業 | E152: 0301_食料品・飼料・飲料製造業
A153: E_製造業 | B153: 09_食料品製造業 | C153: 0921_水産缶詰・瓶詰製造業 | D153: 03_製造業 | E153: 0301_食料品・飼料・飲料製造業
A154: E_製造業 | B154: 09_食料品製造業 | C154: 0922_海藻加工業 | D154: 03_製造業 | E154: 0301_食料品・飼料・飲料製造業
A155: E_製造業 | B155: 09_食料品製造業 | C155: 0923_水産練製品製造業 | D155: 03_製造業 | E155: 0301_食料品・飼料・飲料製造業
A156: E_製造業 | B156: 09_食料品製造業 | C156: 0924_塩干・塩蔵品製造業 | D156: 03_製造業 | E156: 0301_食料品・飼料・飲料製造業
A157: E_製造業 | B157: 09_食料品製造業 | C157: 0925_冷凍水産物製造業 | D157: 03_製造業 | E157: 0301_食料品・飼料・飲料製造業
A158: E_製造業 | B158: 09_食料品製造業 | C158: 0926_冷凍水産食品製造業 | D158: 03_製造業 | E158: 0301_食料品・飼料・飲料製造業
A159: E_製造業 | B159: 09_食料品製造業 | C159: 0929_その他の水産食料品製造業 | D159: 03_製造業 | E159: 0301_食料品・飼料・飲料製造業
A160: E_製造業 | B160: 09_食料品製造業 | C160: 0931_野菜缶詰・果実缶詰・農産保存食料品製造業（野菜漬物を除く） | D160: 03_製造業 | E160: 0301_食料品・飼料・飲料製造業
A161: E_製造業 | B161: 09_食料品製造業 | C161: 0932_野菜漬物製造業（缶詰、瓶詰、つぼ詰を除く） | D161: 03_製造業 | E161: 0301_食料品・飼料・飲料製造業
A162: E_製造業 | B162: 09_食料品製造業 | C162: 0941_味そ製造業 | D162: 03_製造業 | E162: 0301_食料品・飼料・飲料製造業
A163: E_製造業 | B163: 09_食料品製造業 | C163: 0942_しょう油・食用アミノ酸製造業 | D163: 03_製造業 | E163: 0301_食料品・飼料・飲料製造業
A164: E_製造業 | B164: 09_食料品製造業 | C164: 0943_ソース製造業 | D164: 03_製造業 | E164: 0301_食料品・飼料・飲料製造業
A165: E_製造業 | B165: 09_食料品製造業 | C165: 0944_食酢製造業 | D165: 03_製造業 | E165: 0301_食料品・飼料・飲料製造業
A166: E_製造業 | B166: 09_食料品製造業 | C166: 0949_その他の調味料製造業 | D166: 03_製造業 | E166: 0301_食料品・飼料・飲料製造業
A167: E_製造業 | B167: 09_食料品製造業 | C167: 0951_砂糖製造業（砂糖精製業を除く） | D167: 03_製造業 | E167: 0301_食料品・飼料・飲料製造業
A168: E_製造業 | B168: 09_食料品製造業 | C168: 0952_砂糖精製業 | D168: 03_製造業 | E168: 0301_食料品・飼料・飲料製造業
A169: E_製造業 | B169: 09_食料品製造業 | C169: 0953_でんぷん糖類製造業 | D169: 03_製造業 | E169: 0301_食料品・飼料・飲料製造業
A170: E_製造業 | B170: 09_食料品製造業 | C170: 0961_精米・精麦業 | D170: 03_製造業 | E170: 0301_食料品・飼料・飲料製造業
A171: E_製造業 | B171: 09_食料品製造業 | C171: 0962_小麦粉製造業 | D171: 03_製造業 | E171: 0301_食料品・飼料・飲料製造業
A172: E_製造業 | B172: 09_食料品製造業 | C172: 0969_その他の精穀・製粉業 | D172: 03_製造業 | E172: 0301_食料品・飼料・飲料製造業
A173: E_製造業 | B173: 09_食料品製造業 | C173: 0971_パン製造業 | D173: 03_製造業 | E173: 0301_食料品・飼料・飲料製造業
A174: E_製造業 | B174: 09_食料品製造業 | C174: 0972_生菓子製造業 | D174: 03_製造業 | E174: 0301_食料品・飼料・飲料製造業
A175: E_製造業 | B175: 09_食料品製造業 | C175: 0973_ビスケット類・干菓子製造業 | D175: 03_製造業 | E175: 0301_食料品・飼料・飲料製造業
A176: E_製造業 | B176: 09_食料品製造業 | C176: 0974_米菓製造業 | D176: 03_製造業 | E176: 0301_食料品・飼料・飲料製造業
A177: E_製造業 | B177: 09_食料品製造業 | C177: 0979_その他のパン・菓子製造業 | D177: 03_製造業 | E177: 0301_食料品・飼料・飲料製造業
A178: E_製造業 | B178: 09_食料品製造業 | C178: 0981_動植物油脂製造業（食用油脂加工業を除く） | D178: 03_製造業 | E178: 0301_食料品・飼料・飲料製造業
A179: E_製造業 | B179: 09_食料品製造業 | C179: 0982_食用油脂加工業 | D179: 03_製造業 | E179: 0301_食料品・飼料・飲料製造業
A180: E_製造業 | B180: 09_食料品製造業 | C180: 0991_でんぷん製造業 | D180: 03_製造業 | E180: 0301_食料品・飼料・飲料製造業
A181: E_製造業 | B181: 09_食料品製造業 | C181: 0992_めん類製造業 | D181: 03_製造業 | E181: 0301_食料品・飼料・飲料製造業
A182: E_製造業 | B182: 09_食料品製造業 | C182: 0993_豆腐・油揚製造業 | D182: 03_製造業 | E182: 0301_食料品・飼料・飲料製造業
A183: E_製造業 | B183: 09_食料品製造業 | C183: 0994_あん類製造業 | D183: 03_製造業 | E183: 0301_食料品・飼料・飲料製造業
A184: E_製造業 | B184: 09_食料品製造業 | C184: 0995_冷凍調理食品製造業 | D184: 03_製造業 | E184: 0301_食料品・飼料・飲料製造業
A185: E_製造業 | B185: 09_食料品製造業 | C185: 0996_そう（惣）菜製造業 | D185: 03_製造業 | E185: 0301_食料品・飼料・飲料製造業
A186: E_製造業 | B186: 09_食料品製造業 | C186: 0997_すし・弁当・調理パン製造業 | D186: 03_製造業 | E186: 0301_食料品・飼料・飲料製造業
A187: E_製造業 | B187: 09_食料品製造業 | C187: 0998_レトルト食品製造業 | D187: 03_製造業 | E187: 0301_食料品・飼料・飲料製造業
A188: E_製造業 | B188: 09_食料品製造業 | C188: 0999_他に分類されない食料品製造業 | D188: 03_製造業 | E188: 0301_食料品・飼料・飲料製造業
A189: E_製造業 | B189: 10_飲料・たばこ・飼料製造業 | C189: 1000_主として管理事務を行う本社等 | D189: 03_製造業 | E189: 0306_その他の製造業
A190: E_製造業 | B190: 10_飲料・たばこ・飼料製造業 | C190: 1009_その他の管理，補助的経済活動を行う事業所 | D190: 03_製造業 | E190: 0306_その他の製造業
A191: E_製造業 | B191: 10_飲料・たばこ・飼料製造業 | C191: 1011_清涼飲料製造業 | D191: 03_製造業 | E191: 0301_食料品・飼料・飲料製造業
A192: E_製造業 | B192: 10_飲料・たばこ・飼料製造業 | C192: 1021_果実酒製造業 | D192: 03_製造業 | E192: 0301_食料品・飼料・飲料製造業
A193: E_製造業 | B193: 10_飲料・たばこ・飼料製造業 | C193: 1022_発泡性酒類製造業 | D193: 03_製造業 | E193: 0301_食料品・飼料・飲料製造業
A194: E_製造業 | B194: 10_飲料・たばこ・飼料製造業 | C194: 1023_清酒製造業 | D194: 03_製造業 | E194: 0301_食料品・飼料・飲料製造業
A195: E_製造業 | B195: 10_飲料・たばこ・飼料製造業 | C195: 1024_醸造酒類製造業（果実酒、清酒を除く。） | D195: 03_製造業 | E195: 0301_食料品・飼料・飲料製造業
A196: E_製造業 | B196: 10_飲料・たばこ・飼料製造業 | C196: 1025_蒸留酒類製造業 | D196: 03_製造業 | E196: 0301_食料品・飼料・飲料製造業
A197: E_製造業 | B197: 10_飲料・たばこ・飼料製造業 | C197: 1026_混成酒類製造業 | D197: 03_製造業 | E197: 0301_食料品・飼料・飲料製造業
A198: E_製造業 | B198: 10_飲料・たばこ・飼料製造業 | C198: 1031_製茶業 | D198: 03_製造業 | E198: 0301_食料品・飼料・飲料製造業
A199: E_製造業 | B199: 10_飲料・たばこ・飼料製造業 | C199: 1032_コーヒー製造業 | D199: 03_製造業 | E199: 0301_食料品・飼料・飲料製造業
A200: E_製造業 | B200: 10_飲料・たばこ・飼料製造業 | C200: 1041_製氷業 | D200: 03_製造業 | E200: 0301_食料品・飼料・飲料製造業
A201: E_製造業 | B201: 10_飲料・たばこ・飼料製造業 | C201: 1051_たばこ製造業（葉たばこ処理業を除く） | D201: 03_製造業 | E201: 0306_その他の製造業
... 1277 more rows

Sheet 【参照】業種区分 (hidden)
A2: 01_農業 | B2: 0101_農業
A3: 02_建設業 | B3: 0201_建設業
A4: 03_製造業 | B4: 0301_食料品・飼料・飲料製造業 | C4: 0302_化学工業・関連製品製造業 | D4: 0303_鉄鋼業、非鉄金属製造業 | E4: 0304_金属製品製造業 | F4: 0305_一般・電気機械器具製造業 | G4: 0306_その他の製造業
A5: 04_卸売業 | B5: 0401_化学製品卸売業 | C5: 0402_繊維関連製品卸売業 | D5: 0403_食料品卸売業 | E5: 0404_その他の卸売業
A6: 05_小売業 | B6: 0501_小売業
A7: 06_飲食業 | B7: 0601_飲食業
A8: 07_不動産業 | B8: 0701_不動産業
A9: 08_運輸業 | B9: 0801_運輸業
A10: 09_エネルギー | B10: 0901_エネルギー
A11: 10_サービス業 | B11: 1001_物品賃貸業 | C11: 1002_娯楽業 | D11: 1003_広告・調査・情報サービス業 | E11: 1004_事業サービス業 | F11: 1005_専門サービス業 | G11: 1006_その他のサービス業
A12: 11_医療業 | B12: 1101_医療業
A13: 12_保険衛生、廃棄物処理業 | B13: 1201_保険衛生、廃棄物処理業
A14: 13_観光業 | B14: 1301_観光業
A15: 14_その他 | B15: 1400_その他業種

Sheet 【参照】企業規模
A2: 事業規模 | C2: =IF(F22=1,"分析対象外",IF(SUM(F15:F20)=1,"中規模事業者",IF(SUM(F10:F13)=1,"小規模事業者","算出不可"))) -> 中規模事業者
A4: 事業規模区分 | B4: 中小企業基本法 中小企業定義 業種区分 | C4: ローカルベンチマーク業種大分類 | D4: 資本金 | E4: 従業員 | F4: 該当フラグ | H4: ロカベン業種_大分類
A5: 中小規模 | B5: 卸売業 | C5: 04_卸売業 | D5: 1億円以下 | E5: 100人以下 | F5: =IF(AND(【入力】財務分析!D9="04_卸売業",OR(AND(0<【入力】財務分析!$D$13,【入力】財務分析!$D$13<=100000),AND(0<【入力】財務分析!$D$12,0<【入力】財務分析!$D$12<=100))),1,0) -> 0 | H5: 01_農業
B6: 小売業 | C6: 05_小売業、06_飲食業 | D6: 5千万以下 | E6: 50人以下 | F6: =IF(AND(OR(【入力】財務分析!D9="05_小売業",【入力】財務分析!D9="06_飲食業"),OR(AND(0<【入力】財務分析!$D$13,【入力】財務分析!$D$13<=50000),AND(0<【入力】財務分析!$D$12,【入力】財務分析!$D$12<=50))),1,0) -> 0 | H6: 02_建設業
B7: サービス業 | C7: 10_サービス業、11_医療業、12_保健衛生、廃棄物処理業、13_観光業 | D7: 5千万以下 | E7: 100人以下 | F7: =IF(AND(OR(【入力】財務分析!D9="10_サービス業",【入力】財務分析!D9="11_医療業",【入力】財務分析!D9="12_保険衛生、廃棄物処理業",【入力】財務分析!D9="13_観光業"),OR(AND(0<【入力】財務分析!$D$13,【入力】財務分析!$D$13<=50000),AND(0<【入力】財務分析!$D$12,【入力】財務分析!$D$12<=100))),1,0) -> 1 | H7: 03_製造業
B8: 製造業 その他 | C8: 01_農業、02_建設業、03_製造業、07_不動産業、08_運輸業、09_エネルギー、14_その他 | D8: 3億円以下 | E8: 300人以下 | F8: =IF(AND(OR(【入力】財務分析!D9="01_農業",【入力】財務分析!D9="02_建設業",【入力】財務分析!D9="03_製造業",【入力】財務分析!D9="07_不動産業",【入力】財務分析!D9="08_運輸業",【入力】財務分析!D9="09_エネルギー",【入力】財務分析!D9="14_その他"),OR(AND(0<【入力】財務分析!$D$13,【入力】財務分析!$D$13<=300000),AND(0<【入力】財務分析!$D$12,【入力】財務分析!$D$12<=300))),1,0) -> 0 | H8: 04_卸売業
H9: 05_小売業
A10: 小規模 | B10: 卸売業 | C10: 04_卸売業 | E10: 5人以下 | F10: =IF(AND(F5=1,0<=【入力】財務分析!$D$12,【入力】財務分析!$D$12<=5),1,0) -> 0 | H10: 06_飲食業
B11: 小売業 | C11: 05_小売業、06_飲食業 | E11: 5人以下 | F11: =IF(AND(F6=1,0<=【入力】財務分析!$D$12,【入力】財務分析!$D$12<=5),1,0) -> 0 | H11: 07_不動産業
B12: サービス業 | C12: 10_サービス業、11_医療業、12_保健衛生、廃棄物処理業、13_観光業 | E12: 5人以下 | F12: =IF(AND(F7=1,0<=【入力】財務分析!$D$12,【入力】財務分析!$D$12<=5),1,0) -> 0 | H12: 08_運輸業
B13: 製造業 その他 | C13: 01_農業、02_建設業、03_製造業、07_不動産業、08_運輸業、09_エネルギー、14_その他 | E13: 20人以下 | F13: =IF(AND(F8=1,0<=【入力】財務分析!$D$12,【入力】財務分析!$D$12<=20),1,0) -> 0 | H13: 09_エネルギー
H14: 10_サービス業
A15: 中規模 | B15: 卸売業 | C15: 04_卸売業 | D15: 中小規模該当の企業の内、小規模に該当する企業以外の企業 | F15: =IF(AND(F5=1,F10=0),1,IF(AND(F5=1,F10=1),0,0)) -> 0 | H15: 11_医療業
B16: 小売業 | C16: 05_小売業、06_飲食業 | F16: =IF(AND(F6=1,F11=0),1,IF(AND(F6=1,F11=1),0,0)) -> 0 | H16: 12_保険衛生、廃棄物処理業
B17: サービス業 | C17: 10_サービス業、11_医療業、12_保健衛生、廃棄物処理業、13_観光業 | F17: =IF(AND(F7=1,F12=0),1,IF(AND(F7=1,F12=1),0,0)) -> 1 | H17: 13_観光業
B18: 製造業 その他 | C18: 01_農業、02_建設業、03_製造業、07_不動産業、08_運輸業、09_エネルギー、14_その他 | F18: =IF(AND(F8=1,F13=0),1,IF(AND(F8=1,F13=1),0,0)) -> 0 | H18: 14_その他
A20: 中堅企業 | F20: =IF(SUM(F5:F18)+F22=0,1,0) -> 0
A22: 分析対象外 | F22: =IF(OR(【入力】財務分析!D9="エラー_日本標準分類を入力し直して下さい",【入力】財務分析!D9="",AND(OR(【入力】財務分析!$D$12=0,【入力】財務分析!$D$12=""),OR(【入力】財務分析!D13=0,【入力】財務分析!D13=""))),1,0) -> 0

Sheet 【参照】売上増加率基準値
A1: 指標カテゴリ | B1: 大分類 | C1: 小分類 | D1: 事業規模 | E1: 中央値 | F1: 標準偏差 | G1: ⅳ | H1: ⅲ | I1: ⅱ | J1: ⅰ
A2: ①売上増加率 | B2: 01_農業 | C2: 0101_農業 | D2: 中規模事業者 | E2: 2.3% | F2: 6.4% | G2: -5.1% | H2: -0.2% | I2: 5.1% | J2: 10.8%
A3: ①売上増加率 | B3: 01_農業 | C3: 0101_農業 | D3: 小規模事業者 | E3: 3.5% | F3: 12.4% | G3: -9.2% | H3: -0.9% | I3: 6.3% | J3: 20.2%
A4: ①売上増加率 | B4: 02_建設業 | C4: 0201_建設業 | D4: 中規模事業者 | E4: 3.1% | F4: 10.7% | G4: -9.6% | H4: -1.1% | I4: 8.0% | J4: 19.0%
A5: ①売上増加率 | B5: 02_建設業 | C5: 0201_建設業 | D5: 小規模事業者 | E5: 3.9% | F5: 15.4% | G5: -13.3% | H5: -1.8% | I5: 10.3% | J5: 26.1%
A6: ①売上増加率 | B6: 03_製造業 | C6: 0306_その他の製造業 | D6: 中規模事業者 | E6: -1.3% | F6: 8.1% | G6: -11.6% | H6: -4.2% | I6: 1.8% | J6: 9.1%
A7: ①売上増加率 | B7: 03_製造業 | C7: 0306_その他の製造業 | D7: 小規模事業者 | E7: -1.7% | F7: 11.9% | G7: -14.3% | H7: -5.5% | I7: 2.7% | J7: 13.8%
A8: ①売上増加率 | B8: 03_製造業 | C8: 0301_食料品・飼料・飲料製造業 | D8: 中規模事業者 | E8: -1.1% | F8: 7.8% | G8: -11.4% | H8: -3.8% | I8: 2.1% | J8: 8.5%
A9: ①売上増加率 | B9: 03_製造業 | C9: 0301_食料品・飼料・飲料製造業 | D9: 小規模事業者 | E9: -1.6% | F9: 12.3% | G9: -14.6% | H9: -5.5% | I9: 2.0% | J9: 13.5%
A10: ①売上増加率 | B10: 03_製造業 | C10: 0302_化学工業・関連製品製造業 | D10: 中規模事業者 | E10: -0.3% | F10: 6.6% | G10: -8.2% | H10: -2.6% | I10: 2.1% | J10: 7.7%
A11: ①売上増加率 | B11: 03_製造業 | C11: 0302_化学工業・関連製品製造業 | D11: 小規模事業者 | E11: -0.2% | F11: 10.5% | G11: -9.6% | H11: -2.9% | I11: 4.7% | J11: 14.1%
A12: ①売上増加率 | B12: 03_製造業 | C12: 0303_鉄鋼業、非鉄金属製造業 | D12: 中規模事業者 | E12: -3.0% | F12: 7.2% | G12: -10.5% | H12: -5.5% | I12: 0.1% | J12: 8.1%
A13: ①売上増加率 | B13: 03_製造業 | C13: 0303_鉄鋼業、非鉄金属製造業 | D13: 小規模事業者 | E13: -2.7% | F13: 10.8% | G13: -9.2% | H13: -6.0% | I13: -0.5% | J13: 8.5%
A14: ①売上増加率 | B14: 03_製造業 | C14: 0304_金属製品製造業 | D14: 中規模事業者 | E14: -1.1% | F14: 7.7% | G14: -11.0% | H14: -3.9% | I14: 1.8% | J14: 9.0%
A15: ①売上増加率 | B15: 03_製造業 | C15: 0304_金属製品製造業 | D15: 小規模事業者 | E15: -1.6% | F15: 10.5% | G15: -13.9% | H15: -5.1% | I15: 2.3% | J15: 12.1%
A16: ①売上増加率 | B16: 03_製造業 | C16: 0305_一般・電気機械器具製造業 | D16: 中規模事業者 | E16: -1.5% | F16: 9.3% | G16: -13.1% | H16: -5.5% | I16: 2.3% | J16: 10.6%
A17: ①売上増加率 | B17: 03_製造業 | C17: 0305_一般・電気機械器具製造業 | D17: 小規模事業者 | E17: -2.2% | F17: 12.9% | G17: -15.9% | H17: -6.5% | I17: 3.1% | J17: 15.9%
A18: ①売上増加率 | B18: 不使用 | C18: 不使用 | D18: 中規模事業者
A19: ①売上増加率 | B19: 不使用 | C19: 不使用 | D19: 小規模事業者
A20: ①売上増加率 | B20: 04_卸売業 | C20: 0404_その他の卸売業 | D20: 中規模事業者 | E20: -0.2% | F20: 9.6% | G20: -11.2% | H20: -3.6% | I20: 3.1% | J20: 12.2%
A21: ①売上増加率 | B21: 04_卸売業 | C21: 0404_その他の卸売業 | D21: 小規模事業者 | E21: -0.8% | F21: 14.2% | G21: -14.6% | H21: -5.3% | I21: 4.0% | J21: 18.4%
A22: ①売上増加率 | B22: 04_卸売業 | C22: 0401_化学製品卸売業 | D22: 中規模事業者 | E22: -0.3% | F22: 9.2% | G22: -9.5% | H22: -3.1% | I22: 2.0% | J22: 9.5%
A23: ①売上増加率 | B23: 04_卸売業 | C23: 0401_化学製品卸売業 | D23: 小規模事業者 | E23: -0.6% | F23: 11.4% | G23: -12.8% | H23: -4.9% | I23: 3.7% | J23: 17.8%
A24: ①売上増加率 | B24: 04_卸売業 | C24: 0402_繊維関連製品卸売業 | D24: 中規模事業者 | E24: -3.8% | F24: 11.0% | G24: -16.9% | H24: -8.9% | I24: 0.7% | J24: 12.2%
A25: ①売上増加率 | B25: 04_卸売業 | C25: 0402_繊維関連製品卸売業 | D25: 小規模事業者 | E25: -4.5% | F25: 12.3% | G25: -20.2% | H25: -10.8% | I25: -0.6% | J25: 16.1%
A26: ①売上増加率 | B26: 04_卸売業 | C26: 0403_食料品卸売業 | D26: 中規模事業者 | E26: -2.2% | F26: 9.2% | G26: -13.9% | H26: -5.0% | I26: 1.6% | J26: 9.4%
A27: ①売上増加率 | B27: 04_卸売業 | C27: 0403_食料品卸売業 | D27: 小規模事業者 | E27: -3.2% | F27: 13.6% | G27: -16.3% | H27: -7.1% | I27: 1.6% | J27: 16.0%
A28: ①売上増加率 | B28: 不使用 | C28: 不使用 | D28: 中規模事業者
A29: ①売上増加率 | B29: 不使用 | C29: 不使用 | D29: 小規模事業者
A30: ①売上増加率 | B30: 05_小売業 | C30: 0501_小売業 | D30: 中規模事業者 | E30: 0.0% | F30: 11.9% | G30: -11.6% | H30: -3.0% | I30: 4.3% | J30: 17.1%
A31: ①売上増加率 | B31: 05_小売業 | C31: 0501_小売業 | D31: 小規模事業者 | E31: -0.8% | F31: 16.5% | G31: -13.5% | H31: -4.3% | I31: 6.9% | J31: 22.7%
A32: ①売上増加率 | B32: 06_飲食業 | C32: 0601_飲食業 | D32: 中規模事業者 | E32: -7.1% | F32: 10.9% | G32: -20.2% | H32: -11.6% | I32: -3.2% | J32: 8.4%
A33: ①売上増加率 | B33: 06_飲食業 | C33: 0601_飲食業 | D33: 小規模事業者 | E33: -11.1% | F33: 12.7% | G33: -30.6% | H33: -16.7% | I33: -6.3% | J33: 8.7%
A34: ①売上増加率 | B34: 07_不動産業 | C34: 0701_不動産業 | D34: 中規模事業者 | E34: 3.5% | F34: 12.3% | G34: -9.0% | H34: -0.2% | I34: 8.5% | J34: 22.8%
A35: ①売上増加率 | B35: 07_不動産業 | C35: 0701_不動産業 | D35: 小規模事業者 | E35: 5.5% | F35: 20.5% | G35: -17.6% | H35: -1.5% | I35: 15.7% | J35: 37.1%
A36: ①売上増加率 | B36: 08_運輸業 | C36: 0801_運輸業 | D36: 中規模事業者 | E36: 2.4% | F36: 10.6% | G36: -7.4% | H36: -0.4% | I36: 5.9% | J36: 17.9%
A37: ①売上増加率 | B37: 08_運輸業 | C37: 0801_運輸業 | D37: 小規模事業者 | E37: 3.1% | F37: 16.2% | G37: -11.9% | H37: -1.9% | I37: 8.6% | J37: 30.0%
A38: ①売上増加率 | B38: 09_エネルギー | C38: 0901_エネルギー | D38: 中規模事業者 | E38: 0.7% | F38: 19.6% | G38: -5.2% | H38: -1.3% | I38: 20.1% | J38: 45.9%
A39: ①売上増加率 | B39: 09_エネルギー | C39: 0901_エネルギー | D39: 小規模事業者 | E39: 8.2% | F39: 18.2% | G39: -12.7% | H39: 3.1% | I39: 12.1% | J39: 39.5%
A40: ①売上増加率 | B40: 10_サービス業 | C40: 1006_その他のサービス業 | D40: 中規模事業者 | E40: 3.0% | F40: 12.8% | G40: -11.8% | H40: -1.2% | I40: 8.0% | J40: 21.6%
A41: ①売上増加率 | B41: 10_サービス業 | C41: 1006_その他のサービス業 | D41: 小規模事業者 | E41: 1.8% | F41: 18.2% | G41: -18.8% | H41: -4.2% | I41: 9.1% | J41: 28.0%
A42: ①売上増加率 | B42: 10_サービス業 | C42: 1001_物品賃貸業 | D42: 中規模事業者 | E42: 2.4% | F42: 8.9% | G42: -8.2% | H42: -1.6% | I42: 5.3% | J42: 13.1%
A43: ①売上増加率 | B43: 10_サービス業 | C43: 1001_物品賃貸業 | D43: 小規模事業者 | E43: -0.4% | F43: 13.5% | G43: -17.4% | H43: -4.8% | I43: 3.5% | J43: 21.9%
A44: ①売上増加率 | B44: 10_サービス業 | C44: 1002_娯楽業 | D44: 中規模事業者 | E44: -4.1% | F44: 11.7% | G44: -18.6% | H44: -9.2% | I44: 0.1% | J44: 10.2%
A45: ①売上増加率 | B45: 10_サービス業 | C45: 1002_娯楽業 | D45: 小規模事業者 | E45: -5.8% | F45: 14.4% | G45: -31.2% | H45: -9.3% | I45: 1.3% | J45: 12.6%
A46: ①売上増加率 | B46: 10_サービス業 | C46: 1003_広告・調査・情報サービス業 | D46: 中規模事業者 | E46: 5.3% | F46: 13.3% | G46: -9.1% | H46: 0.9% | I46: 10.7% | J46: 26.9%
A47: ①売上増加率 | B47: 10_サービス業 | C47: 1003_広告・調査・情報サービス業 | D47: 小規模事業者 | E47: 1.9% | F47: 16.8% | G47: -19.9% | H47: -6.5% | I47: 11.2% | J47: 25.6%
A48: ①売上増加率 | B48: 10_サービス業 | C48: 1004_事業サービス業 | D48: 中規模事業者 | E48: 2.7% | F48: 13.6% | G48: -12.0% | H48: -1.3% | I48: 8.2% | J48: 23.5%
A49: ①売上増加率 | B49: 10_サービス業 | C49: 1004_事業サービス業 | D49: 小規模事業者 | E49: 2.1% | F49: 17.2% | G49: -16.9% | H49: -3.8% | I49: 7.7% | J49: 23.0%
A50: ①売上増加率 | B50: 10_サービス業 | C50: 1005_専門サービス業 | D50: 中規模事業者 | E50: 4.5% | F50: 11.3% | G50: -8.5% | H50: 0.1% | I50: 8.8% | J50: 20.5%
A51: ①売上増加率 | B51: 10_サービス業 | C51: 1005_専門サービス業 | D51: 小規模事業者 | E51: 5.1% | F51: 21.6% | G51: -18.2% | H51: -1.7% | I51: 14.1% | J51: 43.1%
A52: ①売上増加率 | B52: 不使用 | C52: 不使用 | D52: 中規模事業者
A53: ①売上増加率 | B53: 不使用 | C53: 不使用 | D53: 小規模事業者
A54: ①売上増加率 | B54: 11_医療業 | C54: 1101_医療業 | D54: 中規模事業者 | E54: 6.1% | F54: 19.6% | G54: -5.5% | H54: 3.3% | I54: 17.5% | J54: 44.4%
A55: ①売上増加率 | B55: 11_医療業 | C55: 1101_医療業 | D55: 小規模事業者 | E55: 6.1% | F55: 19.6% | G55: -5.5% | H55: 3.3% | I55: 17.5% | J55: 44.4%
A56: ①売上増加率 | B56: 12_保険衛生、廃棄物処理業 | C56: 1201_保険衛生、廃棄物処理業 | D56: 中規模事業者 | E56: 4.1% | F56: 8.8% | G56: -5.6% | H56: 1.4% | I56: 7.3% | J56: 15.2%
A57: ①売上増加率 | B57: 12_保険衛生、廃棄物処理業 | C57: 1201_保険衛生、廃棄物処理業 | D57: 小規模事業者 | E57: 3.0% | F57: 19.4% | G57: -12.2% | H57: -1.1% | I57: 12.4% | J57: 41.9%
A58: ①売上増加率 | B58: 13_観光業 | C58: 1301_観光業 | D58: 中規模事業者 | E58: -4.2% | F58: 17.3% | G58: -22.0% | H58: -13.4% | I58: 4.2% | J58: 17.7%
A59: ①売上増加率 | B59: 13_観光業 | C59: 1301_観光業 | D59: 小規模事業者 | E59: -3.5% | F59: 15.2% | G59: -25.6% | H59: -10.9% | I59: 0.4% | J59: 23.5%
A60: ①売上増加率 | B60: 14_その他 | C60: 1400_その他業種 | D60: 中規模事業者 | E60: 1.4% | F60: 11.0% | G60: -10.9% | H60: -2.4% | I60: 5.7% | J60: 17.1%
A61: ①売上増加率 | B61: 14_その他 | C61: 1400_その他業種 | D61: 小規模事業者 | E61: 3.0% | F61: 15.9% | G61: -13.9% | H61: -2.6% | I61: 9.5% | J61: 26.2%

Sheet 【参照】営業利益率基準値
A1: 指標カテゴリ | B1: 大分類 | C1: 小分類 | D1: 事業規模 | E1: 中央値 | F1: 標準偏差 | G1: ⅳ | H1: ⅲ | I1: ⅱ | J1: ⅰ
A2: ②営業利益率 | B2: 01_農業 | C2: 0101_農業 | D2: 中規模事業者 | E2: 0.9% | F2: 5.3% | G2: -6.0% | H2: -1.4% | I2: 2.4% | J2: 9.1%
A3: ②営業利益率 | B3: 01_農業 | C3: 0101_農業 | D3: 小規模事業者 | E3: -1.3% | F3: 7.3% | G3: -13.3% | H3: -4.3% | I3: 2.0% | J3: 7.8%
A4: ②営業利益率 | B4: 02_建設業 | C4: 0201_建設業 | D4: 中規模事業者 | E4: 3.5% | F4: 4.2% | G4: -1.3% | H4: 1.8% | I4: 5.4% | J4: 9.8%
A5: ②営業利益率 | B5: 02_建設業 | C5: 0201_建設業 | D5: 小規模事業者 | E5: 1.4% | F5: 5.9% | G5: -7.1% | H5: -0.3% | I5: 3.5% | J5: 8.5%
A6: ②営業利益率 | B6: 03_製造業 | C6: 0306_その他の製造業 | D6: 中規模事業者 | E6: 2.0% | F6: 5.0% | G6: -4.6% | H6: 0.3% | I6: 4.0% | J6: 8.9%
A7: ②営業利益率 | B7: 03_製造業 | C7: 0306_その他の製造業 | D7: 小規模事業者 | E7: 0.7% | F7: 7.0% | G7: -10.3% | H7: -1.6% | I7: 2.9% | J7: 8.1%
A8: ②営業利益率 | B8: 03_製造業 | C8: 0301_食料品・飼料・飲料製造業 | D8: 中規模事業者 | E8: 1.0% | F8: 4.4% | G8: -5.4% | H8: -0.4% | I8: 2.7% | J8: 6.5%
A9: ②営業利益率 | B9: 03_製造業 | C9: 0301_食料品・飼料・飲料製造業 | D9: 小規模事業者 | E9: 0.5% | F9: 6.5% | G9: -10.4% | H9: -1.7% | I9: 2.0% | J9: 5.7%
A10: ②営業利益率 | B10: 03_製造業 | C10: 0302_化学工業・関連製品製造業 | D10: 中規模事業者 | E10: 2.6% | F10: 5.1% | G10: -3.1% | H10: 0.9% | I10: 4.7% | J10: 10.8%
A11: ②営業利益率 | B11: 03_製造業 | C11: 0302_化学工業・関連製品製造業 | D11: 小規模事業者 | E11: 2.0% | F11: 6.3% | G11: -6.8% | H11: -0.0% | I11: 4.0% | J11: 10.4%
A12: ②営業利益率 | B12: 03_製造業 | C12: 0303_鉄鋼業、非鉄金属製造業 | D12: 中規模事業者 | E12: 1.5% | F12: 5.0% | G12: -5.7% | H12: -0.3% | I12: 3.1% | J12: 8.0%
A13: ②営業利益率 | B13: 03_製造業 | C13: 0303_鉄鋼業、非鉄金属製造業 | D13: 小規模事業者 | E13: 0.1% | F13: 4.8% | G13: -6.9% | H13: -2.0% | I13: 2.1% | J13: 4.7%
A14: ②営業利益率 | B14: 03_製造業 | C14: 0304_金属製品製造業 | D14: 中規模事業者 | E14: 2.4% | F14: 5.1% | G14: -3.9% | H14: 0.5% | I14: 4.3% | J14: 9.6%
A15: ②営業利益率 | B15: 03_製造業 | C15: 0304_金属製品製造業 | D15: 小規模事業者 | E15: 1.2% | F15: 7.0% | G15: -10.3% | H15: -1.5% | I15: 3.3% | J15: 9.2%
A16: ②営業利益率 | B16: 03_製造業 | C16: 0305_一般・電気機械器具製造業 | D16: 中規模事業者 | E16: 2.5% | F16: 5.4% | G16: -5.1% | H16: 0.8% | I16: 5.0% | J16: 10.3%
A17: ②営業利益率 | B17: 03_製造業 | C17: 0305_一般・電気機械器具製造業 | D17: 小規模事業者 | E17: 1.1% | F17: 7.2% | G17: -11.2% | H17: -1.7% | I17: 3.9% | J17: 9.1%
A18: ②営業利益率 | B18: 不使用 | C18: 不使用 | D18: 中規模事業者
A19: ②営業利益率 | B19: 不使用 | C19: 不使用 | D19: 小規模事業者
A20: ②営業利益率 | B20: 04_卸売業 | C20: 0404_その他の卸売業 | D20: 中規模事業者 | E20: 1.1% | F20: 3.5% | G20: -2.6% | H20: 0.3% | I20: 2.3% | J20: 5.5%
A21: ②営業利益率 | B21: 04_卸売業 | C21: 0404_その他の卸売業 | D21: 小規模事業者 | E21: 0.4% | F21: 4.5% | G21: -5.6% | H21: -0.6% | I21: 1.5% | J21: 4.9%
A22: ②営業利益率 | B22: 04_卸売業 | C22: 0401_化学製品卸売業 | D22: 中規模事業者 | E22: 1.1% | F22: 3.2% | G22: -1.8% | H22: 0.5% | I22: 2.1% | J22: 5.5%
A23: ②営業利益率 | B23: 04_卸売業 | C23: 0401_化学製品卸売業 | D23: 小規模事業者 | E23: 0.6% | F23: 4.9% | G23: -6.5% | H23: 0.1% | I23: 1.5% | J23: 4.9%
A24: ②営業利益率 | B24: 04_卸売業 | C24: 0402_繊維関連製品卸売業 | D24: 中規模事業者 | E24: 0.7% | F24: 4.8% | G24: -7.1% | H24: -0.6% | I24: 2.2% | J24: 6.3%
A25: ②営業利益率 | B25: 04_卸売業 | C25: 0402_繊維関連製品卸売業 | D25: 小規模事業者 | E25: 0.3% | F25: 5.5% | G25: -12.3% | H25: -1.3% | I25: 1.3% | J25: 4.7%
A26: ②営業利益率 | B26: 04_卸売業 | C26: 0403_食料品卸売業 | D26: 中規模事業者 | E26: 0.3% | F26: 3.0% | G26: -4.4% | H26: -0.4% | I26: 1.0% | J26: 3.1%
A27: ②営業利益率 | B27: 04_卸売業 | C27: 0403_食料品卸売業 | D27: 小規模事業者 | E27: 0.2% | F27: 4.1% | G27: -4.5% | H27: -0.8% | I27: 1.0% | J27: 3.3%
A28: ②営業利益率 | B28: 不使用 | C28: 不使用 | D28: 中規模事業者
A29: ②営業利益率 | B29: 不使用 | C29: 不使用 | D29: 小規模事業者
A30: ②営業利益率 | B30: 05_小売業 | C30: 0501_小売業 | D30: 中規模事業者 | E30: 0.9% | F30: 3.9% | G30: -5.0% | H30: -0.1% | I30: 2.1% | J30: 5.6%
A31: ②営業利益率 | B31: 05_小売業 | C31: 0501_小売業 | D31: 小規模事業者 | E31: 0.0% | F31: 5.8% | G31: -9.1% | H31: -1.8% | I31: 1.7% | J31: 5.3%
A32: ②営業利益率 | B32: 06_飲食業 | C32: 0601_飲食業 | D32: 中規模事業者 | E32: -3.7% | F32: 5.9% | G32: -13.4% | H32: -6.4% | I32: -1.0% | J32: 3.6%
A33: ②営業利益率 | B33: 06_飲食業 | C33: 0601_飲食業 | D33: 小規模事業者 | E33: -9.0% | F33: 8.2% | G33: -23.3% | H33: -12.8% | I33: -5.4% | J33: -0.5%
A34: ②営業利益率 | B34: 07_不動産業 | C34: 0701_不動産業 | D34: 中規模事業者 | E34: 4.4% | F34: 4.3% | G34: -0.3% | H34: 2.5% | I34: 6.3% | J34: 10.2%
A35: ②営業利益率 | B35: 07_不動産業 | C35: 0701_不動産業 | D35: 小規模事業者 | E35: 3.6% | F35: 6.3% | G35: -3.8% | H35: 1.7% | I35: 6.4% | J35: 12.5%
A36: ②営業利益率 | B36: 08_運輸業 | C36: 0801_運輸業 | D36: 中規模事業者 | E36: 1.3% | F36: 3.5% | G36: -3.6% | H36: 0.1% | I36: 2.4% | J36: 5.4%
A37: ②営業利益率 | B37: 08_運輸業 | C37: 0801_運輸業 | D37: 小規模事業者 | E37: 0.4% | F37: 5.4% | G37: -7.9% | H37: -1.2% | I37: 1.6% | J37: 5.2%
A38: ②営業利益率 | B38: 09_エネルギー | C38: 0901_エネルギー | D38: 中規模事業者 | E38: 1.5% | F38: 5.9% | G38: -11.2% | H38: -2.5% | I38: 3.3% | J38: 7.0%
A39: ②営業利益率 | B39: 09_エネルギー | C39: 0901_エネルギー | D39: 小規模事業者 | E39: 3.1% | F39: 7.1% | G39: -6.6% | H39: 1.5% | I39: 4.6% | J39: 17.9%
A40: ②営業利益率 | B40: 10_サービス業 | C40: 1006_その他のサービス業 | D40: 中規模事業者 | E40: 2.0% | F40: 5.5% | G40: -5.2% | H40: 0.4% | I40: 4.3% | J40: 9.5%
A41: ②営業利益率 | B41: 10_サービス業 | C41: 1006_その他のサービス業 | D41: 小規模事業者 | E41: 0.6% | F41: 7.9% | G41: -12.1% | H41: -1.8% | I41: 3.0% | J41: 8.6%
A42: ②営業利益率 | B42: 10_サービス業 | C42: 1001_物品賃貸業 | D42: 中規模事業者 | E42: 3.1% | F42: 4.9% | G42: -3.0% | H42: 1.0% | I42: 4.5% | J42: 10.2%
A43: ②営業利益率 | B43: 10_サービス業 | C43: 1001_物品賃貸業 | D43: 小規模事業者 | E43: 0.5% | F43: 7.1% | G43: -10.6% | H43: -0.5% | I43: 3.1% | J43: 8.7%
A44: ②営業利益率 | B44: 10_サービス業 | C44: 1002_娯楽業 | D44: 中規模事業者 | E44: 0.1% | F44: 5.9% | G44: -12.3% | H44: -2.9% | I44: 1.3% | J44: 6.7%
A45: ②営業利益率 | B45: 10_サービス業 | C45: 1002_娯楽業 | D45: 小規模事業者 | E45: -2.9% | F45: 10.1% | G45: -23.6% | H45: -10.9% | I45: 0.2% | J45: 6.6%
A46: ②営業利益率 | B46: 10_サービス業 | C46: 1003_広告・調査・情報サービス業 | D46: 中規模事業者 | E46: 2.0% | F46: 4.8% | G46: -3.5% | H46: 0.8% | I46: 4.1% | J46: 8.9%
A47: ②営業利益率 | B47: 10_サービス業 | C47: 1003_広告・調査・情報サービス業 | D47: 小規模事業者 | E47: 1.3% | F47: 7.8% | G47: -10.4% | H47: -0.5% | I47: 3.4% | J47: 8.2%
A48: ②営業利益率 | B48: 10_サービス業 | C48: 1004_事業サービス業 | D48: 中規模事業者 | E48: 1.7% | F48: 5.2% | G48: -4.9% | H48: 0.2% | I48: 3.9% | J48: 8.3%
A49: ②営業利益率 | B49: 10_サービス業 | C49: 1004_事業サービス業 | D49: 小規模事業者 | E49: -0.2% | F49: 7.6% | G49: -12.1% | H49: -2.6% | I49: 2.6% | J49: 8.2%
A50: ②営業利益率 | B50: 10_サービス業 | C50: 1005_専門サービス業 | D50: 中規模事業者 | E50: 3.6% | F50: 5.8% | G50: -4.0% | H50: 1.4% | I50: 6.7% | J50: 12.3%
A51: ②営業利益率 | B51: 10_サービス業 | C51: 1005_専門サービス業 | D51: 小規模事業者 | E51: 0.8% | F51: 7.9% | G51: -11.8% | H51: -1.5% | I51: 4.6% | J51: 10.7%
A52: ②営業利益率 | B52: 不使用 | C52: 不使用 | D52: 中規模事業者
A53: ②営業利益率 | B53: 不使用 | C53: 不使用 | D53: 小規模事業者
A54: ②営業利益率 | B54: 11_医療業 | C54: 1101_医療業 | D54: 中規模事業者 | E54: 3.0% | F54: 6.4% | G54: -7.9% | H54: -1.9% | I54: 4.5% | J54: 10.1%
A55: ②営業利益率 | B55: 11_医療業 | C55: 1101_医療業 | D55: 小規模事業者 | E55: 3.0% | F55: 6.4% | G55: -7.9% | H55: -1.9% | I55: 4.5% | J55: 10.1%
A56: ②営業利益率 | B56: 12_保険衛生、廃棄物処理業 | C56: 1201_保険衛生、廃棄物処理業 | D56: 中規模事業者 | E56: 4.0% | F56: 5.0% | G56: -2.6% | H56: 2.0% | I56: 6.5% | J56: 11.4%
A57: ②営業利益率 | B57: 12_保険衛生、廃棄物処理業 | C57: 1201_保険衛生、廃棄物処理業 | D57: 小規模事業者 | E57: 1.8% | F57: 5.9% | G57: -5.8% | H57: -2.2% | I57: 5.7% | J57: 9.4%
A58: ②営業利益率 | B58: 13_観光業 | C58: 1301_観光業 | D58: 中規模事業者 | E58: -0.0% | F58: 6.8% | G58: -12.3% | H58: -6.1% | I58: 1.2% | J58: 7.2%
A59: ②営業利益率 | B59: 13_観光業 | C59: 1301_観光業 | D59: 小規模事業者 | E59: -0.5% | F59: 10.3% | G59: -22.8% | H59: -2.2% | I59: 1.5% | J59: 10.7%
A60: ②営業利益率 | B60: 14_その他 | C60: 1400_その他業種 | D60: 中規模事業者 | E60: 1.8% | F60: 4.5% | G60: -3.3% | H60: 0.6% | I60: 3.6% | J60: 8.2%
A61: ②営業利益率 | B61: 14_その他 | C61: 1400_その他業種 | D61: 小規模事業者 | E61: 1.2% | F61: 6.0% | G61: -7.4% | H61: -0.5% | I61: 3.2% | J61: 8.3%

Sheet 【参照】労働生産性基準値
A1: 指標カテゴリ | B1: 大分類 | C1: 小分類 | D1: 事業規模 | E1: 中央値 | F1: 標準偏差 | G1: ⅳ | H1: ⅲ | I1: ⅱ | J1: ⅰ
A2: ③労働生産性（千円） | B2: 01_農業 | C2: 0101_農業 | D2: 中規模事業者 | E2: 208 | F2: 2647 | G2: -857 | H2: -442 | I2: 957 | J2: 6643
A3: ③労働生産性（千円） | B3: 01_農業 | C3: 0101_農業 | D3: 小規模事業者 | E3: -184 | F3: 3450 | G3: -2734 | H3: -971 | I3: 715 | J3: 3258
A4: ③労働生産性（千円） | B4: 02_建設業 | C4: 0201_建設業 | D4: 中規模事業者 | E4: 1416 | F4: 2232 | G4: -233 | H4: 661 | I4: 2440 | J4: 5230
A5: ③労働生産性（千円） | B5: 02_建設業 | C5: 0201_建設業 | D5: 小規模事業者 | E5: 595 | F5: 2801 | G5: -1409 | H5: 16 | I5: 1508 | J5: 4594
A6: ③労働生産性（千円） | B6: 03_製造業 | C6: 0306_その他の製造業 | D6: 中規模事業者 | E6: 544 | F6: 1754 | G6: -825 | H6: 105 | I6: 1192 | J6: 3238
A7: ③労働生産性（千円） | B7: 03_製造業 | C7: 0306_その他の製造業 | D7: 小規模事業者 | E7: 289 | F7: 2496 | G7: -1999 | H7: -284 | I7: 1010 | J7: 3474
A8: ③労働生産性（千円） | B8: 03_製造業 | C8: 0301_食料品・飼料・飲料製造業 | D8: 中規模事業者 | E8: 350 | F8: 1838 | G8: -1174 | H8: -58 | I8: 858 | J8: 3249
A9: ③労働生産性（千円） | B9: 03_製造業 | C9: 0301_食料品・飼料・飲料製造業 | D9: 小規模事業者 | E9: 233 | F9: 2486 | G9: -3030 | H9: -443 | I9: 961 | J9: 2989
A10: ③労働生産性（千円） | B10: 03_製造業 | C10: 0302_化学工業・関連製品製造業 | D10: 中規模事業者 | E10: 786 | F10: 2117 | G10: -595 | H10: 282 | I10: 1781 | J10: 4794
A11: ③労働生産性（千円） | B11: 03_製造業 | C11: 0302_化学工業・関連製品製造業 | D11: 小規模事業者 | E11: 636 | F11: 3107 | G11: -1184 | H11: 138 | I11: 1870 | J11: 6083
A12: ③労働生産性（千円） | B12: 03_製造業 | C12: 0303_鉄鋼業、非鉄金属製造業 | D12: 中規模事業者 | E12: 581 | F12: 2049 | G12: -1112 | H12: 3 | I12: 1471 | J12: 3853
A13: ③労働生産性（千円） | B13: 03_製造業 | C13: 0303_鉄鋼業、非鉄金属製造業 | D13: 小規模事業者 | E13: 31 | F13: 2636 | G13: -1617 | H13: -422 | I13: 738 | J13: 2359
A14: ③労働生産性（千円） | B14: 03_製造業 | C14: 0304_金属製品製造業 | D14: 中規模事業者 | E14: 577 | F14: 1583 | G14: -667 | H14: 136 | I14: 1171 | J14: 2723
A15: ③労働生産性（千円） | B15: 03_製造業 | C15: 0304_金属製品製造業 | D15: 小規模事業者 | E15: 315 | F15: 2234 | G15: -1686 | H15: -189 | I15: 922 | J15: 3028
A16: ③労働生産性（千円） | B16: 03_製造業 | C16: 0305_一般・電気機械器具製造業 | D16: 中規模事業者 | E16: 651 | F16: 1766 | G16: -699 | H16: 195 | I16: 1372 | J16: 3448
A17: ③労働生産性（千円） | B17: 03_製造業 | C17: 0305_一般・電気機械器具製造業 | D17: 小規模事業者 | E17: 415 | F17: 2433 | G17: -1880 | H17: -208 | I17: 1287 | J17: 3699
A18: ③労働生産性（千円） | B18: 不使用 | C18: 不使用 | D18: 中規模事業者
A19: ③労働生産性（千円） | B19: 不使用 | C19: 不使用 | D19: 小規模事業者
A20: ③労働生産性（千円） | B20: 04_卸売業 | C20: 0404_その他の卸売業 | D20: 中規模事業者 | E20: 794 | F20: 2157 | G20: -859 | H20: 229 | I20: 1644 | J20: 4352
A21: ③労働生産性（千円） | B21: 04_卸売業 | C21: 0404_その他の卸売業 | D21: 小規模事業者 | E21: 564 | F21: 3896 | G21: -2676 | H21: -282 | I21: 1879 | J21: 6428
A22: ③労働生産性（千円） | B22: 04_卸売業 | C22: 0401_化学製品卸売業 | D22: 中規模事業者 | E22: 1103 | F22: 2452 | G22: -611 | H22: 482 | I22: 1912 | J22: 5268
A23: ③労働生産性（千円） | B23: 04_卸売業 | C23: 0401_化学製品卸売業 | D23: 小規模事業者 | E23: 922 | F23: 4422 | G23: -2491 | H23: 61 | I23: 2146 | J23: 8316
A24: ③労働生産性（千円） | B24: 04_卸売業 | C24: 0402_繊維関連製品卸売業 | D24: 中規模事業者 | E24: 423 | F24: 2415 | G24: -1670 | H24: -223 | I24: 1324 | J24: 4430
A25: ③労働生産性（千円） | B25: 04_卸売業 | C25: 0402_繊維関連製品卸売業 | D25: 小規模事業者 | E25: 313 | F25: 3926 | G25: -3847 | H25: -660 | I25: 1648 | J25: 6878
A26: ③労働生産性（千円） | B26: 04_卸売業 | C26: 0403_食料品卸売業 | D26: 中規模事業者 | E26: 418 | F26: 2115 | G26: -1412 | H26: -155 | I26: 1089 | J26: 3771
A27: ③労働生産性（千円） | B27: 04_卸売業 | C27: 0403_食料品卸売業 | D27: 小規模事業者 | E27: 517 | F27: 4317 | G27: -3489 | H27: -662 | I27: 2036 | J27: 6293
A28: ③労働生産性（千円） | B28: 不使用 | C28: 不使用 | D28: 中規模事業者
A29: ③労働生産性（千円） | B29: 不使用 | C29: 不使用 | D29: 小規模事業者
A30: ③労働生産性（千円） | B30: 05_小売業 | C30: 0501_小売業 | D30: 中規模事業者 | E30: 415 | F30: 1846 | G30: -1135 | H30: 6 | I30: 1022 | J30: 3176
A31: ③労働生産性（千円） | B31: 05_小売業 | C31: 0501_小売業 | D31: 小規模事業者 | E31: 147 | F31: 3399 | G31: -3356 | H31: -680 | I31: 1302 | J31: 4683
A32: ③労働生産性（千円） | B32: 06_飲食業 | C32: 0601_飲食業 | D32: 中規模事業者 | E32: -798 | F32: 1413 | G32: -2581 | H32: -1370 | I32: -188 | J32: 1317
A33: ③労働生産性（千円） | B33: 06_飲食業 | C33: 0601_飲食業 | D33: 小規模事業者 | E33: -1789 | F33: 1916 | G33: -5850 | H33: -3104 | I33: -1385 | J33: -55
A34: ③労働生産性（千円） | B34: 07_不動産業 | C34: 0701_不動産業 | D34: 中規模事業者 | E34: 1788 | F34: 2837 | G34: -5 | H34: 953 | I34: 3220 | J34: 7872
A35: ③労働生産性（千円） | B35: 07_不動産業 | C35: 0701_不動産業 | D35: 小規模事業者 | E35: 3276 | F35: 5550 | G35: -836 | H35: 1281 | I35: 6852 | J35: 13882
A36: ③労働生産性（千円） | B36: 08_運輸業 | C36: 0801_運輸業 | D36: 中規模事業者 | E36: 208 | F36: 886 | G36: -526 | H36: 17 | I36: 420 | J36: 1116
A37: ③労働生産性（千円） | B37: 08_運輸業 | C37: 0801_運輸業 | D37: 小規模事業者 | E37: 61 | F37: 2157 | G37: -1587 | H37: -263 | I37: 384 | J37: 1539
A38: ③労働生産性（千円） | B38: 09_エネルギー | C38: 0901_エネルギー | D38: 中規模事業者 | E38: 2655 | F38: 4805 | G38: 310 | H38: 1201 | I38: 3331 | J38: 12285
A39: ③労働生産性（千円） | B39: 09_エネルギー | C39: 0901_エネルギー | D39: 小規模事業者 | E39: 1055 | F39: 7025 | G39: -536 | H39: 400 | I39: 2854 | J39: 11270
A40: ③労働生産性（千円） | B40: 10_サービス業 | C40: 1006_その他のサービス業 | D40: 中規模事業者 | E40: 399 | F40: 1683 | G40: -795 | H40: 75 | I40: 943 | J40: 2707
A41: ③労働生産性（千円） | B41: 10_サービス業 | C41: 1006_その他のサービス業 | D41: 小規模事業者 | E41: 271 | F41: 3438 | G41: -2747 | H41: -386 | I41: 1339 | J41: 5213
A42: ③労働生産性（千円） | B42: 10_サービス業 | C42: 1001_物品賃貸業 | D42: 中規模事業者 | E42: 1049 | F42: 2324 | G42: -621 | H42: 368 | I42: 1996 | J42: 5541
A43: ③労働生産性（千円） | B43: 10_サービス業 | C43: 1001_物品賃貸業 | D43: 小規模事業者 | E43: 194 | F43: 3469 | G43: -2907 | H43: -351 | I43: 1336 | J43: 5491
A44: ③労働生産性（千円） | B44: 10_サービス業 | C44: 1002_娯楽業 | D44: 中規模事業者 | E44: 104 | F44: 2197 | G44: -1888 | H44: -422 | I44: 651 | J44: 3402
A45: ③労働生産性（千円） | B45: 10_サービス業 | C45: 1002_娯楽業 | D45: 小規模事業者 | E45: -486 | F45: 3393 | G45: -4154 | H45: -1464 | I45: 864 | J45: 4848
A46: ③労働生産性（千円） | B46: 10_サービス業 | C46: 1003_広告・調査・情報サービス業 | D46: 中規模事業者 | E46: 353 | F46: 1260 | G46: -532 | H46: 98 | I46: 712 | J46: 2030
A47: ③労働生産性（千円） | B47: 10_サービス業 | C47: 1003_広告・調査・情報サービス業 | D47: 小規模事業者 | E47: 508 | F47: 3283 | G47: -2273 | H47: -152 | I47: 1384 | J47: 5504
A48: ③労働生産性（千円） | B48: 10_サービス業 | C48: 1004_事業サービス業 | D48: 中規模事業者 | E48: 325 | F48: 1571 | G48: -796 | H48: 26 | I48: 922 | J48: 2608
A49: ③労働生産性（千円） | B49: 10_サービス業 | C49: 1004_事業サービス業 | D49: 小規模事業者 | E49: 309 | F49: 2935 | G49: -2314 | H49: -658 | I49: 1312 | J49: 4415
A50: ③労働生産性（千円） | B50: 10_サービス業 | C50: 1005_専門サービス業 | D50: 中規模事業者 | E50: 645 | F50: 1728 | G50: -537 | H50: 227 | I50: 1315 | J50: 2988
A51: ③労働生産性（千円） | B51: 10_サービス業 | C51: 1005_専門サービス業 | D51: 小規模事業者 | E51: 271 | F51: 3509 | G51: -2893 | H51: -476 | I51: 1653 | J51: 5940
A52: ③労働生産性（千円） | B52: 不使用 | C52: 不使用 | D52: 中規模事業者
A53: ③労働生産性（千円） | B53: 不使用 | C53: 不使用 | D53: 小規模事業者
A54: ③労働生産性（千円） | B54: 11_医療業 | C54: 1101_医療業 | D54: 中規模事業者 | E54: 293 | F54: 1097 | G54: -789 | H54: -116 | I54: 589 | J54: 1921
A55: ③労働生産性（千円） | B55: 11_医療業 | C55: 1101_医療業 | D55: 小規模事業者 | E55: 293 | F55: 1097 | G55: -789 | H55: -116 | I55: 589 | J55: 1921
A56: ③労働生産性（千円） | B56: 12_保険衛生、廃棄物処理業 | C56: 1201_保険衛生、廃棄物処理業 | D56: 中規模事業者 | E56: 1138 | F56: 2167 | G56: -387 | H56: 507 | I56: 2069 | J56: 5025
A57: ③労働生産性（千円） | B57: 12_保険衛生、廃棄物処理業 | C57: 1201_保険衛生、廃棄物処理業 | D57: 小規模事業者 | E57: 907 | F57: 3911 | G57: -1131 | H57: -123 | I57: 1959 | J57: 6799
A58: ③労働生産性（千円） | B58: 13_観光業 | C58: 1301_観光業 | D58: 中規模事業者 | E58: -379 | F58: 1591 | G58: -1896 | H58: -1067 | I58: 302 | J58: 1901
A59: ③労働生産性（千円） | B59: 13_観光業 | C59: 1301_観光業 | D59: 小規模事業者 | E59: -91 | F59: 4118 | G59: -4684 | H59: -1736 | I59: 1585 | J59: 6322
A60: ③労働生産性（千円） | B60: 14_その他 | C60: 1400_その他業種 | D60: 中規模事業者 | E60: 744 | F60: 2117 | G60: -735 | H60: 227 | I60: 1619 | J60: 4311
A61: ③労働生産性（千円） | B61: 14_その他 | C61: 1400_その他業種 | D61: 小規模事業者 | E61: 596 | F61: 3267 | G61: -1696 | H61: -39 | I61: 1597 | J61: 5349
A64: ※労働生産性＝営業利益/従業員数

Sheet 【参照】EBITDA基準値
A1: 指標カテゴリ | B1: 大分類 | C1: 小分類 | D1: 事業規模 | E1: 中央値 | F1: 標準偏差 | G1: ⅳ | H1: ⅲ | I1: ⅱ | J1: ⅰ
A2: ④ＥＢＴＤＡ有利子負債倍率 | B2: 01_農業 | C2: 0101_農業 | D2: 中規模事業者 | E2: 5.6倍 | F2: 18.3倍 | G2: 26.4倍 | H2: 8.9倍 | I2: 3.5倍 | J2: 1.0倍
A3: ④ＥＢＴＤＡ有利子負債倍率 | B3: 01_農業 | C3: 0101_農業 | D3: 小規模事業者 | E3: 9.2倍 | F3: 59.6倍 | G3: 66.4倍 | H3: 21.4倍 | I3: 4.8倍 | J3: 1.3倍
A4: ④ＥＢＴＤＡ有利子負債倍率 | B4: 02_建設業 | C4: 0201_建設業 | D4: 中規模事業者 | E4: 5.7倍 | F4: 29.2倍 | G4: 31.8倍 | H4: 10.3倍 | I4: 2.6倍 | J4: 0.5倍
A5: ④ＥＢＴＤＡ有利子負債倍率 | B5: 02_建設業 | C5: 0201_建設業 | D5: 小規模事業者 | E5: 6.2倍 | F5: 34.2倍 | G5: 36.9倍 | H5: 11.8倍 | I5: 3.0倍 | J5: 0.5倍
A6: ④ＥＢＴＤＡ有利子負債倍率 | B6: 03_製造業 | C6: 0306_その他の製造業 | D6: 中規模事業者 | E6: 9.1倍 | F6: 36.5倍 | G6: 54.6倍 | H6: 17.2倍 | I6: 4.6倍 | J6: 0.9倍
A7: ④ＥＢＴＤＡ有利子負債倍率 | B7: 03_製造業 | C7: 0306_その他の製造業 | D7: 小規模事業者 | E7: 10.1倍 | F7: 37.4倍 | G7: 55.6倍 | H7: 18.7倍 | I7: 5.2倍 | J7: 0.8倍
A8: ④ＥＢＴＤＡ有利子負債倍率 | B8: 03_製造業 | C8: 0301_食料品・飼料・飲料製造業 | D8: 中規模事業者 | E8: 10.9倍 | F8: 36.4倍 | G8: 62.6倍 | H8: 22.3倍 | I8: 4.9倍 | J8: 1.2倍
A9: ④ＥＢＴＤＡ有利子負債倍率 | B9: 03_製造業 | C9: 0301_食料品・飼料・飲料製造業 | D9: 小規模事業者 | E9: 12.2倍 | F9: 34.6倍 | G9: 64.7倍 | H9: 22.5倍 | I9: 6.7倍 | J9: 1.1倍
A10: ④ＥＢＴＤＡ有利子負債倍率 | B10: 03_製造業 | C10: 0302_化学工業・関連製品製造業 | D10: 中規模事業者 | E10: 8.6倍 | F10: 20.0倍 | G10: 37.1倍 | H10: 18.2倍 | I10: 3.3倍 | J10: 0.7倍
A11: ④ＥＢＴＤＡ有利子負債倍率 | B11: 03_製造業 | C11: 0302_化学工業・関連製品製造業 | D11: 小規模事業者 | E11: 7.8倍 | F11: 26.4倍 | G11: 40.6倍 | H11: 14.1倍 | I11: 4.5倍 | J11: 1.0倍
A12: ④ＥＢＴＤＡ有利子負債倍率 | B12: 03_製造業 | C12: 0303_鉄鋼業、非鉄金属製造業 | D12: 中規模事業者 | E12: 9.2倍 | F12: 51.5倍 | G12: 86.7倍 | H12: 18.8倍 | I12: 4.6倍 | J12: 1.3倍
A13: ④ＥＢＴＤＡ有利子負債倍率 | B13: 03_製造業 | C13: 0303_鉄鋼業、非鉄金属製造業 | D13: 小規模事業者 | E13: 13.0倍 | F13: 29.4倍 | G13: 52.2倍 | H13: 17.3倍 | I13: 5.5倍 | J13: 1.8倍
A14: ④ＥＢＴＤＡ有利子負債倍率 | B14: 03_製造業 | C14: 0304_金属製品製造業 | D14: 中規模事業者 | E14: 8.4倍 | F14: 41.8倍 | G14: 65.1倍 | H14: 15.3倍 | I14: 4.6倍 | J14: 0.9倍
A15: ④ＥＢＴＤＡ有利子負債倍率 | B15: 03_製造業 | C15: 0304_金属製品製造業 | D15: 小規模事業者 | E15: 8.8倍 | F15: 44.4倍 | G15: 49.1倍 | H15: 18.0倍 | I15: 5.2倍 | J15: 0.9倍
A16: ④ＥＢＴＤＡ有利子負債倍率 | B16: 03_製造業 | C16: 0305_一般・電気機械器具製造業 | D16: 中規模事業者 | E16: 8.3倍 | F16: 33.8倍 | G16: 43.9倍 | H16: 15.3倍 | I16: 4.4倍 | J16: 0.7倍
A17: ④ＥＢＴＤＡ有利子負債倍率 | B17: 03_製造業 | C17: 0305_一般・電気機械器具製造業 | D17: 小規模事業者 | E17: 9.1倍 | F17: 34.3倍 | G17: 63.7倍 | H17: 16.3倍 | I17: 4.4倍 | J17: 0.4倍
A18: ④ＥＢＴＤＡ有利子負債倍率 | B18: 不使用 | C18: 不使用 | D18: 中規模事業者
A19: ④ＥＢＴＤＡ有利子負債倍率 | B19: 不使用 | C19: 不使用 | D19: 小規模事業者
A20: ④ＥＢＴＤＡ有利子負債倍率 | B20: 04_卸売業 | C20: 0404_その他の卸売業 | D20: 中規模事業者 | E20: 7.7倍 | F20: 29.9倍 | G20: 38.6倍 | H20: 14.8倍 | I20: 4.1倍 | J20: 0.8倍
A21: ④ＥＢＴＤＡ有利子負債倍率 | B21: 04_卸売業 | C21: 0404_その他の卸売業 | D21: 小規模事業者 | E21: 9.2倍 | F21: 39.1倍 | G21: 49.1倍 | H21: 17.1倍 | I21: 4.5倍 | J21: 0.7倍
A22: ④ＥＢＴＤＡ有利子負債倍率 | B22: 04_卸売業 | C22: 0401_化学製品卸売業 | D22: 中規模事業者 | E22: 6.5倍 | F22: 11.5倍 | G22: 27.6倍 | H22: 10.9倍 | I22: 3.5倍 | J22: 0.9倍
A23: ④ＥＢＴＤＡ有利子負債倍率 | B23: 04_卸売業 | C23: 0401_化学製品卸売業 | D23: 小規模事業者 | E23: 5.6倍 | F23: 36.6倍 | G23: 62.2倍 | H23: 15.5倍 | I23: 2.6倍 | J23: 0.6倍
A24: ④ＥＢＴＤＡ有利子負債倍率 | B24: 04_卸売業 | C24: 0402_繊維関連製品卸売業 | D24: 中規模事業者 | E24: 10.0倍 | F24: 25.8倍 | G24: 42.1倍 | H24: 15.9倍 | I24: 5.3倍 | J24: 1.1倍
A25: ④ＥＢＴＤＡ有利子負債倍率 | B25: 04_卸売業 | C25: 0402_繊維関連製品卸売業 | D25: 小規模事業者 | E25: 8.4倍 | F25: 16.8倍 | G25: 30.7倍 | H25: 17.4倍 | I25: 5.3倍 | J25: 0.6倍
A26: ④ＥＢＴＤＡ有利子負債倍率 | B26: 04_卸売業 | C26: 0403_食料品卸売業 | D26: 中規模事業者 | E26: 10.8倍 | F26: 35.7倍 | G26: 58.3倍 | H26: 20.3倍 | I26: 5.9倍 | J26: 1.3倍
A27: ④ＥＢＴＤＡ有利子負債倍率 | B27: 04_卸売業 | C27: 0403_食料品卸売業 | D27: 小規模事業者 | E27: 10.6倍 | F27: 54.6倍 | G27: 72.6倍 | H27: 26.3倍 | I27: 5.4倍 | J27: 0.8倍
A28: ④ＥＢＴＤＡ有利子負債倍率 | B28: 不使用 | C28: 不使用 | D28: 中規模事業者
A29: ④ＥＢＴＤＡ有利子負債倍率 | B29: 不使用 | C29: 不使用 | D29: 小規模事業者
A30: ④ＥＢＴＤＡ有利子負債倍率 | B30: 05_小売業 | C30: 0501_小売業 | D30: 中規模事業者 | E30: 7.6倍 | F30: 27.7倍 | G30: 35.2倍 | H30: 12.9倍 | I30: 4.5倍 | J30: 1.0倍
A31: ④ＥＢＴＤＡ有利子負債倍率 | B31: 05_小売業 | C31: 0501_小売業 | D31: 小規模事業者 | E31: 9.6倍 | F31: 36.9倍 | G31: 47.3倍 | H31: 17.5倍 | I31: 4.1倍 | J31: 1.1倍
A32: ④ＥＢＴＤＡ有利子負債倍率 | B32: 06_飲食業 | C32: 0601_飲食業 | D32: 中規模事業者 | E32: 7.7倍 | F32: 28.5倍 | G32: 52.5倍 | H32: 15.8倍 | I32: 3.2倍 | J32: 0.9倍
A33: ④ＥＢＴＤＡ有利子負債倍率 | B33: 06_飲食業 | C33: 0601_飲食業 | D33: 小規模事業者 | E33: 13.1倍 | F33: 18.9倍 | G33: 58.8倍 | H33: 27.6倍 | I33: 11.6倍 | J33: 3.7倍
A34: ④ＥＢＴＤＡ有利子負債倍率 | B34: 07_不動産業 | C34: 0701_不動産業 | D34: 中規模事業者 | E34: 8.6倍 | F34: 19.8倍 | G34: 25.4倍 | H34: 13.6倍 | I34: 4.7倍 | J34: 1.3倍
A35: ④ＥＢＴＤＡ有利子負債倍率 | B35: 07_不動産業 | C35: 0701_不動産業 | D35: 小規模事業者 | E35: 12.7倍 | F35: 19.3倍 | G35: 35.3倍 | H35: 18.2倍 | I35: 7.4倍 | J35: 2.2倍
A36: ④ＥＢＴＤＡ有利子負債倍率 | B36: 08_運輸業 | C36: 0801_運輸業 | D36: 中規模事業者 | E36: 6.8倍 | F36: 23.7倍 | G36: 34.7倍 | H36: 12.8倍 | I36: 4.0倍 | J36: 0.7倍
A37: ④ＥＢＴＤＡ有利子負債倍率 | B37: 08_運輸業 | C37: 0801_運輸業 | D37: 小規模事業者 | E37: 5.7倍 | F37: 34.8倍 | G37: 40.7倍 | H37: 10.3倍 | I37: 2.2倍 | J37: 0.4倍
A38: ④ＥＢＴＤＡ有利子負債倍率 | B38: 09_エネルギー | C38: 0901_エネルギー | D38: 中規模事業者 | E38: 1.1倍 | F38: 6.2倍 | G38: 13.2倍 | H38: 1.2倍 | I38: 1.0倍 | J38: 0.4倍
A39: ④ＥＢＴＤＡ有利子負債倍率 | B39: 09_エネルギー | C39: 0901_エネルギー | D39: 小規模事業者 | E39: 6.2倍 | F39: 7.6倍 | G39: 21.2倍 | H39: 12.6倍 | I39: 3.6倍 | J39: 0.7倍
A40: ④ＥＢＴＤＡ有利子負債倍率 | B40: 10_サービス業 | C40: 1006_その他のサービス業 | D40: 中規模事業者 | E40: 5.0倍 | F40: 21.1倍 | G40: 27.9倍 | H40: 9.5倍 | I40: 2.4倍 | J40: 0.5倍
A41: ④ＥＢＴＤＡ有利子負債倍率 | B41: 10_サービス業 | C41: 1006_その他のサービス業 | D41: 小規模事業者 | E41: 6.2倍 | F41: 27.0倍 | G41: 36.4倍 | H41: 11.5倍 | I41: 2.9倍 | J41: 0.5倍
A42: ④ＥＢＴＤＡ有利子負債倍率 | B42: 10_サービス業 | C42: 1001_物品賃貸業 | D42: 中規模事業者 | E42: 4.5倍 | F42: 19.1倍 | G42: 28.0倍 | H42: 8.4倍 | I42: 2.4倍 | J42: 0.4倍
A43: ④ＥＢＴＤＡ有利子負債倍率 | B43: 10_サービス業 | C43: 1001_物品賃貸業 | D43: 小規模事業者 | E43: 5.9倍 | F43: 32.4倍 | G43: 26.1倍 | H43: 9.5倍 | I43: 1.6倍 | J43: 0.4倍
A44: ④ＥＢＴＤＡ有利子負債倍率 | B44: 10_サービス業 | C44: 1002_娯楽業 | D44: 中規模事業者 | E44: 6.7倍 | F44: 19.6倍 | G44: 44.8倍 | H44: 12.0倍 | I44: 3.4倍 | J44: 0.6倍
A45: ④ＥＢＴＤＡ有利子負債倍率 | B45: 10_サービス業 | C45: 1002_娯楽業 | D45: 小規模事業者 | E45: 7.7倍 | F45: 17.5倍 | G45: 54.3倍 | H45: 12.7倍 | I45: 5.4倍 | J45: 1.1倍
A46: ④ＥＢＴＤＡ有利子負債倍率 | B46: 10_サービス業 | C46: 1003_広告・調査・情報サービス業 | D46: 中規模事業者 | E46: 3.8倍 | F46: 24.2倍 | G46: 21.5倍 | H46: 6.9倍 | I46: 1.8倍 | J46: 0.3倍
A47: ④ＥＢＴＤＡ有利子負債倍率 | B47: 10_サービス業 | C47: 1003_広告・調査・情報サービス業 | D47: 小規模事業者 | E47: 6.0倍 | F47: 11.9倍 | G47: 21.1倍 | H47: 10.8倍 | I47: 2.5倍 | J47: 0.6倍
A48: ④ＥＢＴＤＡ有利子負債倍率 | B48: 10_サービス業 | C48: 1004_事業サービス業 | D48: 中規模事業者 | E48: 5.0倍 | F48: 15.1倍 | G48: 28.2倍 | H48: 10.6倍 | I48: 2.3倍 | J48: 0.5倍
A49: ④ＥＢＴＤＡ有利子負債倍率 | B49: 10_サービス業 | C49: 1004_事業サービス業 | D49: 小規模事業者 | E49: 8.4倍 | F49: 42.8倍 | G49: 71.0倍 | H49: 15.9倍 | I49: 4.0倍 | J49: 0.8倍
A50: ④ＥＢＴＤＡ有利子負債倍率 | B50: 10_サービス業 | C50: 1005_専門サービス業 | D50: 中規模事業者 | E50: 4.3倍 | F50: 28.6倍 | G50: 24.2倍 | H50: 7.2倍 | I50: 2.0倍 | J50: 0.6倍
A51: ④ＥＢＴＤＡ有利子負債倍率 | B51: 10_サービス業 | C51: 1005_専門サービス業 | D51: 小規模事業者 | E51: 5.1倍 | F51: 11.4倍 | G51: 29.3倍 | H51: 9.8倍 | I51: 3.0倍 | J51: 0.6倍
A52: ④ＥＢＴＤＡ有利子負債倍率 | B52: 不使用 | C52: 不使用 | D52: 中規模事業者
A53: ④ＥＢＴＤＡ有利子負債倍率 | B53: 不使用 | C53: 不使用 | D53: 小規模事業者
A54: ④ＥＢＴＤＡ有利子負債倍率 | B54: 11_医療業 | C54: 1101_医療業 | D54: 中規模事業者 | E54: 6.7倍 | F54: 33.3倍 | G54: 95.8倍 | H54: 8.9倍 | I54: 3.2倍 | J54: 0.6倍
A55: ④ＥＢＴＤＡ有利子負債倍率 | B55: 11_医療業 | C55: 1101_医療業 | D55: 小規模事業者 | E55: 6.7倍 | F55: 33.3倍 | G55: 95.8倍 | H55: 8.9倍 | I55: 3.2倍 | J55: 0.6倍
A56: ④ＥＢＴＤＡ有利子負債倍率 | B56: 12_保険衛生、廃棄物処理業 | C56: 1201_保険衛生、廃棄物処理業 | D56: 中規模事業者 | E56: 4.0倍 | F56: 23.6倍 | G56: 22.6倍 | H56: 7.4倍 | I56: 2.0倍 | J56: 0.6倍
A57: ④ＥＢＴＤＡ有利子負債倍率 | B57: 12_保険衛生、廃棄物処理業 | C57: 1201_保険衛生、廃棄物処理業 | D57: 小規模事業者 | E57: 2.6倍 | F57: 13.6倍 | G57: 17.3倍 | H57: 5.0倍 | I57: 1.2倍 | J57: 0.2倍
A58: ④ＥＢＴＤＡ有利子負債倍率 | B58: 13_観光業 | C58: 1301_観光業 | D58: 中規模事業者 | E58: 13.7倍 | F58: 26.9倍 | G58: 68.2倍 | H58: 19.5倍 | I58: 8.9倍 | J58: 2.5倍
A59: ④ＥＢＴＤＡ有利子負債倍率 | B59: 13_観光業 | C59: 1301_観光業 | D59: 小規模事業者 | E59: 10.9倍 | F59: 46.1倍 | G59: 140.9倍 | H59: 14.5倍 | I59: 1.6倍 | J59: 0.6倍
A60: ④ＥＢＴＤＡ有利子負債倍率 | B60: 14_その他 | C60: 1400_その他業種 | D60: 中規模事業者 | E60: 6.6倍 | F60: 27.4倍 | G60: 34.0倍 | H60: 12.1倍 | I60: 3.3倍 | J60: 0.7倍
A61: ④ＥＢＴＤＡ有利子負債倍率 | B61: 14_その他 | C61: 1400_その他業種 | D61: 小規模事業者 | E61: 7.2倍 | F61: 33.4倍 | G61: 39.3倍 | H61: 13.6倍 | I61: 3.5倍 | J61: 0.6倍
A64: ※ＥＢＴＤＡ有利子負債倍率＝①（借入金－現金・預金）／②（営業利益＋減価償却費）
A65: ※以下の優先順位に基づき、点数を付与。
A66: 優先①：①式が0以下（借入金＜現金・預金又は借入金＝現金・預金＝0）の場合は、「5点」を付与
A67: 優先②：②式が0以下（営業利益＋減価償却費<=0）の場合は、「1点」を付与
A68: 優先③：①式及び②式が0超の時、本式にて算出された結果に基づき点数を付与

Sheet 【参照】営業運転資本回転期間基準値
A1: 指標カテゴリ | B1: 大分類 | C1: 小分類 | D1: 事業規模 | E1: 中央値 | F1: 標準偏差 | G1: ⅳ | H1: ⅲ | I1: ⅱ | J1: ⅰ
A2: ⑥営業運転資本回転期間 | B2: 01_農業 | C2: 0101_農業 | D2: 中規模事業者 | E2: 1.1ヶ月 | F2: 1.6ヶ月 | G2: 3.9ヶ月 | H2: 2.0ヶ月 | I2: 0.6ヶ月 | J2: -0.7ヶ月
A3: ⑥営業運転資本回転期間 | B3: 01_農業 | C3: 0101_農業 | D3: 小規模事業者 | E3: 1.5ヶ月 | F3: 2.6ヶ月 | G3: 6.4ヶ月 | H3: 2.5ヶ月 | I3: 0.8ヶ月 | J3: 0.1ヶ月
A4: ⑥営業運転資本回転期間 | B4: 02_建設業 | C4: 0201_建設業 | D4: 中規模事業者 | E4: 1.2ヶ月 | F4: 1.5ヶ月 | G4: 3.7ヶ月 | H4: 2.0ヶ月 | I4: 0.6ヶ月 | J4: -0.1ヶ月
A5: ⑥営業運転資本回転期間 | B5: 02_建設業 | C5: 0201_建設業 | D5: 小規模事業者 | E5: 0.8ヶ月 | F5: 1.4ヶ月 | G5: 3.0ヶ月 | H5: 1.4ヶ月 | I5: 0.4ヶ月 | J5: -0.0ヶ月
A6: ⑥営業運転資本回転期間 | B6: 03_製造業 | C6: 0306_その他の製造業 | D6: 中規模事業者 | E6: 2.1ヶ月 | F6: 1.7ヶ月 | G6: 4.8ヶ月 | H6: 3.0ヶ月 | I6: 1.4ヶ月 | J6: 0.4ヶ月
A7: ⑥営業運転資本回転期間 | B7: 03_製造業 | C7: 0306_その他の製造業 | D7: 小規模事業者 | E7: 1.8ヶ月 | F7: 1.9ヶ月 | G7: 4.7ヶ月 | H7: 2.6ヶ月 | I7: 1.2ヶ月 | J7: 0.3ヶ月
A8: ⑥営業運転資本回転期間 | B8: 03_製造業 | C8: 0301_食料品・飼料・飲料製造業 | D8: 中規模事業者 | E8: 1.8ヶ月 | F8: 1.8ヶ月 | G8: 5.6ヶ月 | H8: 2.7ヶ月 | I8: 1.2ヶ月 | J8: 0.5ヶ月
A9: ⑥営業運転資本回転期間 | B9: 03_製造業 | C9: 0301_食料品・飼料・飲料製造業 | D9: 小規模事業者 | E9: 1.6ヶ月 | F9: 2.2ヶ月 | G9: 6.1ヶ月 | H9: 2.6ヶ月 | I9: 1.0ヶ月 | J9: 0.4ヶ月
A10: ⑥営業運転資本回転期間 | B10: 03_製造業 | C10: 0302_化学工業・関連製品製造業 | D10: 中規模事業者 | E10: 2.5ヶ月 | F10: 1.6ヶ月 | G10: 5.0ヶ月 | H10: 3.4ヶ月 | I10: 1.8ヶ月 | J10: 0.8ヶ月
A11: ⑥営業運転資本回転期間 | B11: 03_製造業 | C11: 0302_化学工業・関連製品製造業 | D11: 小規模事業者 | E11: 1.8ヶ月 | F11: 1.8ヶ月 | G11: 4.5ヶ月 | H11: 2.3ヶ月 | I11: 1.3ヶ月 | J11: 0.6ヶ月
A12: ⑥営業運転資本回転期間 | B12: 03_製造業 | C12: 0303_鉄鋼業、非鉄金属製造業 | D12: 中規模事業者 | E12: 2.1ヶ月 | F12: 1.7ヶ月 | G12: 5.0ヶ月 | H12: 2.8ヶ月 | I12: 1.5ヶ月 | J12: 0.5ヶ月
A13: ⑥営業運転資本回転期間 | B13: 03_製造業 | C13: 0303_鉄鋼業、非鉄金属製造業 | D13: 小規模事業者 | E13: 2.0ヶ月 | F13: 1.8ヶ月 | G13: 4.9ヶ月 | H13: 2.6ヶ月 | I13: 1.3ヶ月 | J13: 0.4ヶ月
A14: ⑥営業運転資本回転期間 | B14: 03_製造業 | C14: 0304_金属製品製造業 | D14: 中規模事業者 | E14: 2.2ヶ月 | F14: 1.6ヶ月 | G14: 4.5ヶ月 | H14: 2.9ヶ月 | I14: 1.5ヶ月 | J14: 0.3ヶ月
A15: ⑥営業運転資本回転期間 | B15: 03_製造業 | C15: 0304_金属製品製造業 | D15: 小規模事業者 | E15: 1.7ヶ月 | F15: 1.5ヶ月 | G15: 4.1ヶ月 | H15: 2.3ヶ月 | I15: 1.2ヶ月 | J15: 0.2ヶ月
A16: ⑥営業運転資本回転期間 | B16: 03_製造業 | C16: 0305_一般・電気機械器具製造業 | D16: 中規模事業者 | E16: 2.5ヶ月 | F16: 1.6ヶ月 | G16: 5.1ヶ月 | H16: 3.3ヶ月 | I16: 1.8ヶ月 | J16: 0.6ヶ月
A17: ⑥営業運転資本回転期間 | B17: 03_製造業 | C17: 0305_一般・電気機械器具製造業 | D17: 小規模事業者 | E17: 2.0ヶ月 | F17: 1.7ヶ月 | G17: 4.8ヶ月 | H17: 2.8ヶ月 | I17: 1.4ヶ月 | J17: 0.4ヶ月
A18: ⑥営業運転資本回転期間 | B18: 不使用 | C18: 不使用 | D18: 中規模事業者
A19: ⑥営業運転資本回転期間 | B19: 不使用 | C19: 不使用 | D19: 小規模事業者
A20: ⑥営業運転資本回転期間 | B20: 04_卸売業 | C20: 0404_その他の卸売業 | D20: 中規模事業者 | E20: 1.0ヶ月 | F20: 1.5ヶ月 | G20: 3.5ヶ月 | H20: 1.7ヶ月 | I20: 0.4ヶ月 | J20: -0.4ヶ月
A21: ⑥営業運転資本回転期間 | B21: 04_卸売業 | C21: 0404_その他の卸売業 | D21: 小規模事業者 | E21: 0.9ヶ月 | F21: 1.7ヶ月 | G21: 3.6ヶ月 | H21: 1.6ヶ月 | I21: 0.4ヶ月 | J21: -0.3ヶ月
A22: ⑥営業運転資本回転期間 | B22: 04_卸売業 | C22: 0401_化学製品卸売業 | D22: 中規模事業者 | E22: 0.9ヶ月 | F22: 1.3ヶ月 | G22: 2.9ヶ月 | H22: 1.5ヶ月 | I22: 0.3ヶ月 | J22: -0.5ヶ月
A23: ⑥営業運転資本回転期間 | B23: 04_卸売業 | C23: 0401_化学製品卸売業 | D23: 小規模事業者 | E23: 0.7ヶ月 | F23: 1.9ヶ月 | G23: 3.6ヶ月 | H23: 1.4ヶ月 | I23: 0.4ヶ月 | J23: -0.4ヶ月
A24: ⑥営業運転資本回転期間 | B24: 04_卸売業 | C24: 0402_繊維関連製品卸売業 | D24: 中規模事業者 | E24: 2.3ヶ月 | F24: 1.8ヶ月 | G24: 5.3ヶ月 | H24: 3.5ヶ月 | I24: 1.5ヶ月 | J24: 0.2ヶ月
A25: ⑥営業運転資本回転期間 | B25: 04_卸売業 | C25: 0402_繊維関連製品卸売業 | D25: 小規模事業者 | E25: 1.8ヶ月 | F25: 2.5ヶ月 | G25: 6.7ヶ月 | H25: 2.9ヶ月 | I25: 1.1ヶ月 | J25: -0.1ヶ月
A26: ⑥営業運転資本回転期間 | B26: 04_卸売業 | C26: 0403_食料品卸売業 | D26: 中規模事業者 | E26: 0.7ヶ月 | F26: 1.3ヶ月 | G26: 3.0ヶ月 | H26: 1.3ヶ月 | I26: 0.4ヶ月 | J26: -0.1ヶ月
A27: ⑥営業運転資本回転期間 | B27: 04_卸売業 | C27: 0403_食料品卸売業 | D27: 小規模事業者 | E27: 0.8ヶ月 | F27: 1.5ヶ月 | G27: 3.5ヶ月 | H27: 1.3ヶ月 | I27: 0.3ヶ月 | J27: -0.1ヶ月
A28: ⑥営業運転資本回転期間 | B28: 不使用 | C28: 不使用 | D28: 中規模事業者
A29: ⑥営業運転資本回転期間 | B29: 不使用 | C29: 不使用 | D29: 小規模事業者
A30: ⑥営業運転資本回転期間 | B30: 05_小売業 | C30: 0501_小売業 | D30: 中規模事業者 | E30: 0.9ヶ月 | F30: 1.4ヶ月 | G30: 3.0ヶ月 | H30: 1.5ヶ月 | I30: 0.5ヶ月 | J30: -0.3ヶ月
A31: ⑥営業運転資本回転期間 | B31: 05_小売業 | C31: 0501_小売業 | D31: 小規模事業者 | E31: 1.1ヶ月 | F31: 2.0ヶ月 | G31: 4.4ヶ月 | H31: 1.8ヶ月 | I31: 0.5ヶ月 | J31: -0.1ヶ月
A32: ⑥営業運転資本回転期間 | B32: 06_飲食業 | C32: 0601_飲食業 | D32: 中規模事業者 | E32: 0.1ヶ月 | F32: 0.5ヶ月 | G32: 0.8ヶ月 | H32: 0.2ヶ月 | I32: -0.1ヶ月 | J32: -0.3ヶ月
A33: ⑥営業運転資本回転期間 | B33: 06_飲食業 | C33: 0601_飲食業 | D33: 小規模事業者 | E33: 0.1ヶ月 | F33: 0.5ヶ月 | G33: 1.2ヶ月 | H33: 0.4ヶ月 | I33: 0.0ヶ月 | J33: -0.3ヶ月
A34: ⑥営業運転資本回転期間 | B34: 07_不動産業 | C34: 0701_不動産業 | D34: 中規模事業者 | E34: 1.6ヶ月 | F34: 2.2ヶ月 | G34: 6.0ヶ月 | H34: 3.5ヶ月 | I34: 0.5ヶ月 | J34: 0.0ヶ月
A35: ⑥営業運転資本回転期間 | B35: 07_不動産業 | C35: 0701_不動産業 | D35: 小規模事業者 | E35: 3.7ヶ月 | F35: 3.1ヶ月 | G35: 8.3ヶ月 | H35: 5.6ヶ月 | I35: 1.3ヶ月 | J35: 0.0ヶ月
A36: ⑥営業運転資本回転期間 | B36: 08_運輸業 | C36: 0801_運輸業 | D36: 中規模事業者 | E36: 1.0ヶ月 | F36: 0.8ヶ月 | G36: 1.9ヶ月 | H36: 1.3ヶ月 | I36: 0.6ヶ月 | J36: -0.1ヶ月
A37: ⑥営業運転資本回転期間 | B37: 08_運輸業 | C37: 0801_運輸業 | D37: 小規模事業者 | E37: 1.0ヶ月 | F37: 1.0ヶ月 | G37: 2.1ヶ月 | H37: 1.3ヶ月 | I37: 0.6ヶ月 | J37: 0.0ヶ月
A38: ⑥営業運転資本回転期間 | B38: 09_エネルギー | C38: 0901_エネルギー | D38: 中規模事業者 | E38: 0.8ヶ月 | F38: 0.8ヶ月 | G38: 2.5ヶ月 | H38: 1.0ヶ月 | I38: 0.6ヶ月 | J38: 0.0ヶ月
A39: ⑥営業運転資本回転期間 | B39: 09_エネルギー | C39: 0901_エネルギー | D39: 小規模事業者 | E39: 1.3ヶ月 | F39: 1.2ヶ月 | G39: 2.3ヶ月 | H39: 1.4ヶ月 | I39: 0.8ヶ月 | J39: 0.1ヶ月
A40: ⑥営業運転資本回転期間 | B40: 10_サービス業 | C40: 1006_その他のサービス業 | D40: 中規模事業者 | E40: 1.1ヶ月 | F40: 1.1ヶ月 | G40: 2.5ヶ月 | H40: 1.5ヶ月 | I40: 0.6ヶ月 | J40: 0.0ヶ月
A41: ⑥営業運転資本回転期間 | B41: 10_サービス業 | C41: 1006_その他のサービス業 | D41: 小規模事業者 | E41: 0.9ヶ月 | F41: 1.3ヶ月 | G41: 2.8ヶ月 | H41: 1.3ヶ月 | I41: 0.6ヶ月 | J41: -0.0ヶ月
A42: ⑥営業運転資本回転期間 | B42: 10_サービス業 | C42: 1001_物品賃貸業 | D42: 中規模事業者 | E42: 1.1ヶ月 | F42: 1.2ヶ月 | G42: 2.7ヶ月 | H42: 1.6ヶ月 | I42: 0.6ヶ月 | J42: -0.2ヶ月
A43: ⑥営業運転資本回転期間 | B43: 10_サービス業 | C43: 1001_物品賃貸業 | D43: 小規模事業者 | E43: 0.7ヶ月 | F43: 1.1ヶ月 | G43: 2.4ヶ月 | H43: 1.2ヶ月 | I43: 0.2ヶ月 | J43: -0.2ヶ月
A44: ⑥営業運転資本回転期間 | B44: 10_サービス業 | C44: 1002_娯楽業 | D44: 中規模事業者 | E44: 0.3ヶ月 | F44: 1.0ヶ月 | G44: 1.9ヶ月 | H44: 0.7ヶ月 | I44: 0.1ヶ月 | J44: -0.1ヶ月
A45: ⑥営業運転資本回転期間 | B45: 10_サービス業 | C45: 1002_娯楽業 | D45: 小規模事業者 | E45: 0.7ヶ月 | F45: 1.5ヶ月 | G45: 4.4ヶ月 | H45: 1.0ヶ月 | I45: 0.5ヶ月 | J45: 0.0ヶ月
A46: ⑥営業運転資本回転期間 | B46: 10_サービス業 | C46: 1003_広告・調査・情報サービス業 | D46: 中規模事業者 | E46: 1.2ヶ月 | F46: 1.1ヶ月 | G46: 2.6ヶ月 | H46: 1.6ヶ月 | I46: 0.9ヶ月 | J46: 0.1ヶ月
A47: ⑥営業運転資本回転期間 | B47: 10_サービス業 | C47: 1003_広告・調査・情報サービス業 | D47: 小規模事業者 | E47: 1.0ヶ月 | F47: 1.3ヶ月 | G47: 3.5ヶ月 | H47: 1.5ヶ月 | I47: 0.7ヶ月 | J47: 0.2ヶ月
A48: ⑥営業運転資本回転期間 | B48: 10_サービス業 | C48: 1004_事業サービス業 | D48: 中規模事業者 | E48: 1.1ヶ月 | F48: 0.9ヶ月 | G48: 2.2ヶ月 | H48: 1.4ヶ月 | I48: 0.8ヶ月 | J48: 0.0ヶ月
A49: ⑥営業運転資本回転期間 | B49: 10_サービス業 | C49: 1004_事業サービス業 | D49: 小規模事業者 | E49: 1.0ヶ月 | F49: 1.0ヶ月 | G49: 2.3ヶ月 | H49: 1.3ヶ月 | I49: 0.6ヶ月 | J49: 0.0ヶ月
A50: ⑥営業運転資本回転期間 | B50: 10_サービス業 | C50: 1005_専門サービス業 | D50: 中規模事業者 | E50: 1.1ヶ月 | F50: 1.4ヶ月 | G50: 3.1ヶ月 | H50: 1.7ヶ月 | I50: 0.7ヶ月 | J50: 0.1ヶ月
A51: ⑥営業運転資本回転期間 | B51: 10_サービス業 | C51: 1005_専門サービス業 | D51: 小規模事業者 | E51: 0.8ヶ月 | F51: 1.3ヶ月 | G51: 3.2ヶ月 | H51: 1.3ヶ月 | I51: 0.5ヶ月 | J51: 0.0ヶ月
A52: ⑥営業運転資本回転期間 | B52: 不使用 | C52: 不使用 | D52: 中規模事業者
A53: ⑥営業運転資本回転期間 | B53: 不使用 | C53: 不使用 | D53: 小規模事業者
A54: ⑥営業運転資本回転期間 | B54: 11_医療業 | C54: 1101_医療業 | D54: 中規模事業者 | E54: 0.3ヶ月 | F54: 1.2ヶ月 | G54: 2.4ヶ月 | H54: 1.3ヶ月 | I54: -0.0ヶ月 | J54: -0.4ヶ月
A55: ⑥営業運転資本回転期間 | B55: 11_医療業 | C55: 1101_医療業 | D55: 小規模事業者 | E55: 0.3ヶ月 | F55: 1.2ヶ月 | G55: 2.4ヶ月 | H55: 1.3ヶ月 | I55: -0.0ヶ月 | J55: -0.4ヶ月
A56: ⑥営業運転資本回転期間 | B56: 12_保険衛生、廃棄物処理業 | C56: 1201_保険衛生、廃棄物処理業 | D56: 中規模事業者 | E56: 1.1ヶ月 | F56: 0.9ヶ月 | G56: 2.0ヶ月 | H56: 1.4ヶ月 | I56: 0.8ヶ月 | J56: 0.1ヶ月
A57: ⑥営業運転資本回転期間 | B57: 12_保険衛生、廃棄物処理業 | C57: 1201_保険衛生、廃棄物処理業 | D57: 小規模事業者 | E57: 0.9ヶ月 | F57: 1.3ヶ月 | G57: 2.3ヶ月 | H57: 1.2ヶ月 | I57: 0.5ヶ月 | J57: 0.1ヶ月
A58: ⑥営業運転資本回転期間 | B58: 13_観光業 | C58: 1301_観光業 | D58: 中規模事業者 | E58: 0.5ヶ月 | F58: 0.6ヶ月 | G58: 1.3ヶ月 | H58: 0.8ヶ月 | I58: 0.3ヶ月 | J58: 0.0ヶ月
A59: ⑥営業運転資本回転期間 | B59: 13_観光業 | C59: 1301_観光業 | D59: 小規模事業者 | E59: 0.6ヶ月 | F59: 0.6ヶ月 | G59: 1.4ヶ月 | H59: 0.9ヶ月 | I59: 0.5ヶ月 | J59: 0.1ヶ月
A60: ⑥営業運転資本回転期間 | B60: 14_その他 | C60: 1400_その他業種 | D60: 中規模事業者 | E60: 1.0ヶ月 | F60: 1.4ヶ月 | G60: 3.3ヶ月 | H60: 1.6ヶ月 | I60: 0.5ヶ月 | J60: -0.2ヶ月
A61: ⑥営業運転資本回転期間 | B61: 14_その他 | C61: 1400_その他業種 | D61: 小規模事業者 | E61: 0.8ヶ月 | F61: 1.7ヶ月 | G61: 3.5ヶ月 | H61: 1.5ヶ月 | I61: 0.4ヶ月 | J61: -0.0ヶ月

Sheet 【参照】自己資本比率基準値
A1: 指標カテゴリ | B1: 大分類 | C1: 小分類 | D1: 事業規模 | E1: 中央値 | F1: 標準偏差 | G1: ⅳ | H1: ⅲ | I1: ⅱ | J1: ⅰ
A2: ⑤自己資本比率 | B2: 01_農業 | C2: 0101_農業 | D2: 中規模事業者 | E2: 20.3% | F2: 26.0% | G2: -16.5% | H2: 7.9% | I2: 27.9% | J2: 61.9%
A3: ⑤自己資本比率 | B3: 01_農業 | C3: 0101_農業 | D3: 小規模事業者 | E3: 12.3% | F3: 34.7% | G3: -28.3% | H3: 1.2% | I3: 36.0% | J3: 70.6%
A4: ⑤自己資本比率 | B4: 02_建設業 | C4: 0201_建設業 | D4: 中規模事業者 | E4: 37.4% | F4: 23.4% | G4: 6.6% | H4: 24.0% | I4: 51.7% | J4: 72.4%
A5: ⑤自己資本比率 | B5: 02_建設業 | C5: 0201_建設業 | D5: 小規模事業者 | E5: 28.8% | F5: 37.7% | G5: -25.1% | H5: 13.7% | I5: 46.1% | J5: 73.0%
A6: ⑤自己資本比率 | B6: 03_製造業 | C6: 0306_その他の製造業 | D6: 中規模事業者 | E6: 32.7% | F6: 26.0% | G6: 0.9% | H6: 18.9% | I6: 48.4% | J6: 73.4%
A7: ⑤自己資本比率 | B7: 03_製造業 | C7: 0306_その他の製造業 | D7: 小規模事業者 | E7: 23.5% | F7: 39.4% | G7: -28.6% | H7: 9.0% | I7: 42.9% | J7: 71.1%
A8: ⑤自己資本比率 | B8: 03_製造業 | C8: 0301_食料品・飼料・飲料製造業 | D8: 中規模事業者 | E8: 26.6% | F8: 27.1% | G8: -3.2% | H8: 14.2% | I8: 41.2% | J8: 68.4%
A9: ⑤自己資本比率 | B9: 03_製造業 | C9: 0301_食料品・飼料・飲料製造業 | D9: 小規模事業者 | E9: 15.7% | F9: 41.7% | G9: -38.6% | H9: 3.4% | I9: 30.2% | J9: 63.9%
A10: ⑤自己資本比率 | B10: 03_製造業 | C10: 0302_化学工業・関連製品製造業 | D10: 中規模事業者 | E10: 42.0% | F10: 26.5% | G10: 3.5% | H10: 25.8% | I10: 55.2% | J10: 78.3%
A11: ⑤自己資本比率 | B11: 03_製造業 | C11: 0302_化学工業・関連製品製造業 | D11: 小規模事業者 | E11: 30.2% | F11: 40.1% | G11: -26.9% | H11: 12.5% | I11: 46.9% | J11: 83.1%
A12: ⑤自己資本比率 | B12: 03_製造業 | C12: 0303_鉄鋼業、非鉄金属製造業 | D12: 中規模事業者 | E12: 33.9% | F12: 27.3% | G12: 0.3% | H12: 17.2% | I12: 50.5% | J12: 76.3%
A13: ⑤自己資本比率 | B13: 03_製造業 | C13: 0303_鉄鋼業、非鉄金属製造業 | D13: 小規模事業者 | E13: 26.1% | F13: 40.5% | G13: -23.1% | H13: 9.4% | I13: 42.0% | J13: 70.2%
A14: ⑤自己資本比率 | B14: 03_製造業 | C14: 0304_金属製品製造業 | D14: 中規模事業者 | E14: 32.1% | F14: 25.0% | G14: 2.0% | H14: 18.8% | I14: 47.0% | J14: 72.8%
A15: ⑤自己資本比率 | B15: 03_製造業 | C15: 0304_金属製品製造業 | D15: 小規模事業者 | E15: 24.3% | F15: 41.0% | G15: -26.1% | H15: 9.9% | I15: 41.6% | J15: 72.6%
A16: ⑤自己資本比率 | B16: 03_製造業 | C16: 0305_一般・電気機械器具製造業 | D16: 中規模事業者 | E16: 34.7% | F16: 25.5% | G16: 2.5% | H16: 21.1% | I16: 50.5% | J16: 73.5%
A17: ⑤自己資本比率 | B17: 03_製造業 | C17: 0305_一般・電気機械器具製造業 | D17: 小規模事業者 | E17: 25.2% | F17: 37.9% | G17: -25.5% | H17: 11.1% | I17: 45.3% | J17: 70.3%
A18: ⑤自己資本比率 | B18: 不使用 | C18: 不使用 | D18: 中規模事業者
A19: ⑤自己資本比率 | B19: 不使用 | C19: 不使用 | D19: 小規模事業者
A20: ⑤自己資本比率 | B20: 04_卸売業 | C20: 0404_その他の卸売業 | D20: 中規模事業者 | E20: 29.3% | F20: 23.0% | G20: 3.8% | H20: 18.4% | I20: 41.8% | J20: 66.2%
A21: ⑤自己資本比率 | B21: 04_卸売業 | C21: 0404_その他の卸売業 | D21: 小規模事業者 | E21: 21.0% | F21: 36.6% | G21: -27.9% | H21: 9.8% | I21: 37.2% | J21: 67.8%
A22: ⑤自己資本比率 | B22: 04_卸売業 | C22: 0401_化学製品卸売業 | D22: 中規模事業者 | E22: 32.1% | F22: 22.4% | G22: 7.2% | H22: 19.9% | I22: 44.6% | J22: 67.0%
A23: ⑤自己資本比率 | B23: 04_卸売業 | C23: 0401_化学製品卸売業 | D23: 小規模事業者 | E23: 24.4% | F23: 33.2% | G23: -23.6% | H23: 14.6% | I23: 40.3% | J23: 70.2%
A24: ⑤自己資本比率 | B24: 04_卸売業 | C24: 0402_繊維関連製品卸売業 | D24: 中規模事業者 | E24: 28.2% | F24: 23.8% | G24: -1.0% | H24: 17.8% | I24: 40.5% | J24: 63.1%
A25: ⑤自己資本比率 | B25: 04_卸売業 | C25: 0402_繊維関連製品卸売業 | D25: 小規模事業者 | E25: 16.1% | F25: 33.8% | G25: -19.8% | H25: 6.8% | I25: 33.0% | J25: 61.1%
A26: ⑤自己資本比率 | B26: 04_卸売業 | C26: 0403_食料品卸売業 | D26: 中規模事業者 | E26: 21.7% | F26: 24.2% | G26: -6.0% | H26: 12.5% | I26: 35.3% | J26: 64.4%
A27: ⑤自己資本比率 | B27: 04_卸売業 | C27: 0403_食料品卸売業 | D27: 小規模事業者 | E27: 14.6% | F27: 43.5% | G27: -44.9% | H27: 6.7% | I27: 25.1% | J27: 65.9%
A28: ⑤自己資本比率 | B28: 不使用 | C28: 不使用 | D28: 中規模事業者
A29: ⑤自己資本比率 | B29: 不使用 | C29: 不使用 | D29: 小規模事業者
A30: ⑤自己資本比率 | B30: 05_小売業 | C30: 0501_小売業 | D30: 中規模事業者 | E30: 23.1% | F30: 26.6% | G30: -6.5% | H30: 12.3% | I30: 38.2% | J30: 68.6%
A31: ⑤自己資本比率 | B31: 05_小売業 | C31: 0501_小売業 | D31: 小規模事業者 | E31: 13.7% | F31: 37.9% | G31: -37.4% | H31: 2.4% | I31: 30.1% | J31: 62.5%
A32: ⑤自己資本比率 | B32: 06_飲食業 | C32: 0601_飲食業 | D32: 中規模事業者 | E32: 14.7% | F32: 25.5% | G32: -18.2% | H32: 5.0% | I32: 24.9% | J32: 58.0%
A33: ⑤自己資本比率 | B33: 06_飲食業 | C33: 0601_飲食業 | D33: 小規模事業者 | E33: 0.8% | F33: 38.0% | G33: -38.4% | H33: -5.5% | I33: 12.9% | J33: 49.8%
A34: ⑤自己資本比率 | B34: 07_不動産業 | C34: 0701_不動産業 | D34: 中規模事業者 | E34: 26.4% | F34: 17.7% | G34: 8.0% | H34: 18.4% | I34: 35.4% | J34: 53.6%
A35: ⑤自己資本比率 | B35: 07_不動産業 | C35: 0701_不動産業 | D35: 小規模事業者 | E35: 16.4% | F35: 23.9% | G35: 1.0% | H35: 8.9% | I35: 25.6% | J35: 51.9%
A36: ⑤自己資本比率 | B36: 08_運輸業 | C36: 0801_運輸業 | D36: 中規模事業者 | E36: 13.3% | F36: 21.1% | G36: -7.9% | H36: 6.9% | I36: 25.0% | J36: 49.5%
A37: ⑤自己資本比率 | B37: 08_運輸業 | C37: 0801_運輸業 | D37: 小規模事業者 | E37: 9.4% | F37: 33.7% | G37: -45.8% | H37: 0.3% | I37: 22.5% | J37: 50.7%
A38: ⑤自己資本比率 | B38: 09_エネルギー | C38: 0901_エネルギー | D38: 中規模事業者 | E38: 25.3% | F38: 19.9% | G38: 6.9% | H38: 14.5% | I38: 28.8% | J38: 68.6%
A39: ⑤自己資本比率 | B39: 09_エネルギー | C39: 0901_エネルギー | D39: 小規模事業者 | E39: 13.7% | F39: 17.4% | G39: -0.7% | H39: 8.9% | I39: 17.7% | J39: 28.8%
A40: ⑤自己資本比率 | B40: 10_サービス業 | C40: 1006_その他のサービス業 | D40: 中規模事業者 | E40: 31.1% | F40: 25.8% | G40: -0.4% | H40: 18.3% | I40: 46.4% | J40: 72.3%
A41: ⑤自己資本比率 | B41: 10_サービス業 | C41: 1006_その他のサービス業 | D41: 小規模事業者 | E41: 23.5% | F41: 44.9% | G41: -48.0% | H41: 7.6% | I41: 40.9% | J41: 70.9%
A42: ⑤自己資本比率 | B42: 10_サービス業 | C42: 1001_物品賃貸業 | D42: 中規模事業者 | E42: 28.6% | F42: 26.0% | G42: 0.6% | H42: 16.1% | I42: 43.5% | J42: 70.9%
A43: ⑤自己資本比率 | B43: 10_サービス業 | C43: 1001_物品賃貸業 | D43: 小規模事業者 | E43: 19.6% | F43: 44.5% | G43: -60.5% | H43: 5.7% | I43: 31.2% | J43: 61.1%
A44: ⑤自己資本比率 | B44: 10_サービス業 | C44: 1002_娯楽業 | D44: 中規模事業者 | E44: 25.9% | F44: 29.7% | G44: -12.0% | H44: 10.6% | I44: 41.6% | J44: 74.3%
A45: ⑤自己資本比率 | B45: 10_サービス業 | C45: 1002_娯楽業 | D45: 小規模事業者 | E45: 10.5% | F45: 45.3% | G45: -71.0% | H45: -1.0% | I45: 39.5% | J45: 65.1%
A46: ⑤自己資本比率 | B46: 10_サービス業 | C46: 1003_広告・調査・情報サービス業 | D46: 中規模事業者 | E46: 32.0% | F46: 24.2% | G46: 2.9% | H46: 21.2% | I46: 47.2% | J46: 70.6%
A47: ⑤自己資本比率 | B47: 10_サービス業 | C47: 1003_広告・調査・情報サービス業 | D47: 小規模事業者 | E47: 26.7% | F47: 45.5% | G47: -62.6% | H47: 10.9% | I47: 40.9% | J47: 75.3%
A48: ⑤自己資本比率 | B48: 10_サービス業 | C48: 1004_事業サービス業 | D48: 中規模事業者 | E48: 31.9% | F48: 25.3% | G48: -0.3% | H48: 19.9% | I48: 46.1% | J48: 71.9%
A49: ⑤自己資本比率 | B49: 10_サービス業 | C49: 1004_事業サービス業 | D49: 小規模事業者 | E49: 24.0% | F49: 39.0% | G49: -41.5% | H49: 7.8% | I49: 42.4% | J49: 79.2%
A50: ⑤自己資本比率 | B50: 10_サービス業 | C50: 1005_専門サービス業 | D50: 中規模事業者 | E50: 40.0% | F50: 25.6% | G50: 3.5% | H50: 24.9% | I50: 56.6% | J50: 75.1%
A51: ⑤自己資本比率 | B51: 10_サービス業 | C51: 1005_専門サービス業 | D51: 小規模事業者 | E51: 25.5% | F51: 44.1% | G51: -39.1% | H51: 9.1% | I51: 47.4% | J51: 69.3%
A52: ⑤自己資本比率 | B52: 不使用 | C52: 不使用 | D52: 中規模事業者
A53: ⑤自己資本比率 | B53: 不使用 | C53: 不使用 | D53: 小規模事業者
A54: ⑤自己資本比率 | B54: 11_医療業 | C54: 1101_医療業 | D54: 中規模事業者 | E54: 12.7% | F54: 28.0% | G54: -20.5% | H54: 6.4% | I54: 32.8% | J54: 62.0%
A55: ⑤自己資本比率 | B55: 11_医療業 | C55: 1101_医療業 | D55: 小規模事業者 | E55: 12.7% | F55: 28.0% | G55: -20.5% | H55: 6.4% | I55: 32.8% | J55: 62.0%
A56: ⑤自己資本比率 | B56: 12_保険衛生、廃棄物処理業 | C56: 1201_保険衛生、廃棄物処理業 | D56: 中規模事業者 | E56: 31.5% | F56: 25.2% | G56: 3.5% | H56: 17.6% | I56: 45.8% | J56: 73.4%
A57: ⑤自己資本比率 | B57: 12_保険衛生、廃棄物処理業 | C57: 1201_保険衛生、廃棄物処理業 | D57: 小規模事業者 | E57: 33.1% | F57: 42.6% | G57: -33.1% | H57: 17.9% | I57: 43.6% | J57: 72.2%
A58: ⑤自己資本比率 | B58: 13_観光業 | C58: 1301_観光業 | D58: 中規模事業者 | E58: 15.3% | F58: 25.1% | G58: -7.9% | H58: 6.7% | I58: 33.5% | J58: 64.0%
A59: ⑤自己資本比率 | B59: 13_観光業 | C59: 1301_観光業 | D59: 小規模事業者 | E59: 17.1% | F59: 41.3% | G59: -37.5% | H59: 9.2% | I59: 37.3% | J59: 72.7%
A60: ⑤自己資本比率 | B60: 14_その他 | C60: 1400_その他業種 | D60: 中規模事業者 | E60: 30.2% | F60: 24.4% | G60: 2.0% | H60: 18.1% | I60: 44.4% | J60: 69.2%
A61: ⑤自己資本比率 | B61: 14_その他 | C61: 1400_その他業種 | D61: 小規模事業者 | E61: 25.5% | F61: 37.4% | G61: -26.6% | H61: 11.4% | I61: 42.8% | J61: 71.1%

Sheet Sheet1
